Workbook

Sheet CUA1
A1: Cuadro No. 1
A2: Ejecución del Presupuesto General de la Nación
A3: Acumulada a marzo 2025
A4: Miles de millones de pesos corrientes
B5: Concepto | C5: Apropiación Vigente | D5: Compromiso | E5: Obligación | F5: Pago | G5: Apropiación sin comprometer | H5: Porcentaje de ejecución
C6: Vigente | H6: Comp./Apro. | I6: Oblig./Apro. | J6: Pago/Apro. | K6: Oblig./Comp. | L6: Pago/Oblig.
C7: (1) | D7: (2) | E7: (3) | F7: (4) | G7: (5)=(1-2) | H7: (6)=(2/1) | I7: (7)=(3/1) | J7: (8)=(4/1) | K7: (9)=(3/2) | L7: (10)=(4/3)
A8: I. | B8: FUNCIONAMIENTO | C8: 329236.8079 | D8: 89947.90642 | E8: 60116.21231 | F8: 58924.47978 | G8: 239288.9015 | H8: 27.32012468 | I8: 18.25926229 | J8: 17.8972941 | K8: 66.83447643 | L8: 98.01761872
B9: Gastos de Personal | C9: 60242.8517 | D9: 12169.96963 | E9: 11045.38183 | F9: 11024.94183 | G9: 48072.88206 | H9: 20.20151651 | I9: 18.33475927 | J9: 18.30082992 | K9: 90.75932124 | L9: 99.81494521
B10: Adquisición de Bienes y Servicios | C10: 16804.68444 | D10: 8260.777056 | E10: 2035.419811 | F10: 1934.133203 | G10: 8543.907386 | H10: 49.1575851 | I10: 12.11221679 | J10: 11.50948838 | K10: 24.63956837 | L10: 95.0237977
B11: Transferencias | C11: 247741.2784 | D11: 68100.42071 | E11: 46576.63413 | F11: 45578.45097 | G11: 179640.8577 | H11: 27.48852397 | I11: 18.80051416 | J11: 18.39760062 | K11: 68.39404755 | L11: 97.85690148
B12: Gastos de Comercialización y Producción | C12: 2050.774355 | D12: 674.3027051 | E12: 227.4937622 | F12: 157.7386902 | G12: 1376.47165 | H12: 32.88039484 | I12: 11.09306646 | J12: 7.69166485 | K12: 33.73763155 | L12: 69.33758917
B13: Adquisición de Activos Financieros | C13: 759.1561267 | D13: 514.1518557 | E13: 12.59967137 | F13: 12.44741556 | G13: 245.0042711 | H13: 67.72676101 | I13: 1.659694353 | J13: 1.639638425 | K13: 2.450573936 | L13: 98.79158906
B14: Disminución de Pasivos | C14: 358.6590558 | D14: 63.83872004 | E14: 62.51567096 | F14: 62.41137421 | G14: 294.8203357 | H14: 17.79927734 | I14: 17.43038966 | J14: 17.40131002 | K14: 97.92751314 | L14: 99.83316702
B15: Gastos por Tributos, Multas, Sanciones e Intereses de Mora | C15: 1279.403771 | D15: 164.4457334 | E15: 156.167434 | F15: 154.3562948 | G15: 1114.958037 | H15: 12.85331004 | I15: 12.20626651 | J15: 12.06470532 | K15: 94.96593852 | L15: 98.84025805
A16: II. | B16: SERVICIO DE LA DEUDA | C16: 112605.1864 | D16: 18498.66035 | E16: 17721.9086 | F16: 15334.74724 | G16: 94106.52605 | H16: 16.42789372 | I16: 15.73809268 | J16: 13.6181536 | K16: 95.80103783 | L16: 86.52988563
B17: Servicio de la Deuda Pública Externa | C17: 41029.422 | D17: 5589.143758 | E17: 4824.69606 | F17: 4401.56884 | G17: 35440.27824 | H17: 13.62228246 | I17: 11.75911291 | J17: 10.72783536 | K17: 86.32263311 | L17: 91.22997148
B18: Principal | C18: 21772.59 | D18: 2731.141399 | E18: 2574.427684 | F18: 2539.39891 | G18: 19041.4486 | H18: 12.54394355 | I18: 11.8241683 | J18: 11.66328356 | K18: 94.26196994 | L18: 98.63935683
B19: Intereses | C19: 19104.45816 | D19: 2819.326254 | E19: 2233.59826 | F19: 1845.890158 | G19: 16285.1319 | H19: 14.75742589 | I19: 11.6915028 | J19: 9.662091138 | K19: 79.22454015 | L19: 82.64199481
B20: Comisiones y Otros Gastos | C20: 152.3738446 | D20: 38.67610586 | E20: 16.67011611 | F20: 16.27977168 | G20: 113.6977387 | H20: 25.38237843 | I20: 10.940274 | J20: 10.68409852 | K20: 43.10184734 | L20: 97.65841807
B21: Servicio de la Deuda Pública Interna | C21: 71575.76439 | D21: 12909.51659 | E21: 12897.21254 | F21: 10933.1784 | G21: 58666.2478 | H21: 18.03615609 | I21: 18.01896584 | J21: 15.2749726 | K21: 99.90469006 | L21: 84.7716386
B22: Principal | C22: 28993.66678 | D22: 1486.897691 | E22: 1486.897691 | F22: 1285.127213 | G22: 27506.76909 | H22: 5.128353381 | I22: 5.128353381 | J22: 4.432441135 | K22: 100 | L22: 86.43010349
B23: Intereses | C23: 40380.19015 | D23: 11160.40537 | E23: 11160.40537 | F23: 9398.141712 | G23: 29219.78478 | H23: 27.63831802 | I23: 27.63831802 | J23: 23.27413932 | K23: 100 | L23: 84.20968057
B24: Comisiones y Otros Gastos | C24: 294.8098498 | D24: 12.82419061 | E24: 0.5201387134 | F24: 0.5201387134 | G24: 281.9856592 | H24: 4.34998716 | I24: 0.1764319319 | J24: 0.1764319319 | K24: 4.055918452 | L24: 100
B25: Fondo de contingencias | C25: 1907.097618 | D25: 249.3893395 | E25: 249.3893395 | F25: 249.3893395 | G25: 1657.708279 | H25: 13.07690478 | I25: 13.07690478 | J25: 13.07690478 | K25: 100 | L25: 100
A26: III. | B26: INVERSIÓN | C26: 83961.13818 | D26: 36362.83096 | E26: 6628.013399 | F26: 6532.165607 | G26: 47598.30723 | H26: 43.30912104 | I26: 7.894144294 | J26: 7.779986965 | K26: 18.22744056 | L26: 98.55389863
A27: IV. | B27: TOTAL (I + II + III) | C27: 525803.1325 | D27: 144809.3977 | E27: 84466.13431 | F27: 80791.39262 | G27: 380993.7347 | H27: 27.54061145 | I27: 16.06421284 | J27: 15.36533117 | K27: 58.32918004 | L27: 95.64944967
A28: V. | B28: TOTAL SIN DEUDA (I + III) | C28: 413197.9461 | D28: 126310.7374 | E28: 66744.22571 | F28: 65456.64538 | G28: 286887.2087 | H28: 30.56906226 | I28: 16.15308748 | J28: 15.84147405 | K28: 52.84129212 | L28: 98.07087382
A29: Fuente: Dirección General del Presupuesto Público Nacional- Subdirección de Análisis y Consolidación Presupuestal
C32: =+C27-'CUA2'!C27-'CUA3'!C25 -> -6.548361853e-11 | D32: =+D27-'CUA2'!D27-'CUA3'!D25 -> -2.000888344e-11 | E32: =+E27-'CUA2'!E27-'CUA3'!E25 -> -7.275957614e-12 | F32: =+F27-'CUA2'!F27-'CUA3'!F25 -> -3.274180926e-11 | G32: =+G27-'CUA2'!G27-'CUA3'!G25 -> -1.637090463e-11

Sheet CUA2
A1: Cuadro No. 2
A2: Ejecución del presupuesto recursos Nación
A3: =+'CUA1'!A3:L3 -> Acumulada a marzo 2025
A4: Miles de millones de pesos corrientes
B5: Concepto | C5: Apropiación Vigente | D5: Compromiso | E5: Obligación | F5: Pago | G5: Apropiación sin comprometer | H5: Porcentaje de ejecución
C6: Vigente | H6: Comp./Apro. | I6: Oblig./Apro. | J6: Pago/Apro. | K6: Oblig./Comp. | L6: Pago/Oblig.
C7: (1) | D7: (2) | E7: (3) | F7: (4) | G7: (5)=(1-2) | H7: (6)=(2/1) | I7: (7)=(3/1) | J7: (8)=(4/1) | K7: (9)=(3/2) | L7: (10)=(4/3)
A8: I. | B8: FUNCIONAMIENTO | C8: 316077.2011 | D8: 85003.08643 | E8: 56692.58503 | F8: 55584.6787 | G8: 231074.1147 | H8: 26.89314071 | I8: 17.9363095 | J8: 17.58579186 | K8: 66.69473711 | L8: 98.04576502
B9: Gastos de Personal | C9: 56644.41209 | D9: 11457.11092 | E9: 10418.77133 | F9: 10400.94122 | G9: 45187.30118 | H9: 20.22637449 | I9: 18.39329061 | J9: 18.36181334 | K9: 90.93716037 | L9: 99.82886549
B10: Adquisición de Bienes y Servicios | C10: 15498.77682 | D10: 7549.604978 | E10: 1886.224413 | F10: 1795.401344 | G10: 7949.171839 | H10: 48.71097292 | I10: 12.17015017 | J10: 11.58414864 | K10: 24.98441201 | L10: 95.1849277
B11: Transferencias | C11: 241693.812 | D11: 65243.69753 | E11: 44184.06031 | F11: 43186.1059 | G11: 176450.1145 | H11: 26.99435992 | I11: 18.28100601 | J11: 17.86810574 | K11: 67.72157616 | L11: 97.74137007
B12: Gastos de Comercialización y Producción | C12: 113.326023 | D12: 45.54269784 | E12: 4.28991497 | F12: 4.287331559 | G12: 67.78332516 | H12: 40.18732559 | I12: 3.785463264 | J12: 3.783183637 | K12: 9.419545115 | L12: 99.93977944
B13: Adquisición de Activos Financieros | C13: 630.895 | D13: 502.3029186 | E13: 0.751503278 | F13: 0.751503278 | G13: 128.5920814 | H13: 79.61751458 | I13: 0.1191170128 | J13: 0.1191170128 | K13: 0.1496115691 | L13: 100
B14: Disminución de Pasivos | C14: 341.9580558 | D14: 62.83747387 | E14: 61.51865941 | F14: 61.41436265 | G14: 279.1205819 | H14: 18.37578405 | I14: 17.99011849 | J14: 17.95961862 | K14: 97.90122934 | L14: 99.83046322
B15: Gastos por Tributos, Multas, Sanciones e Intereses de Mora | C15: 1154.021054 | D15: 141.9899153 | E15: 136.9689019 | F15: 135.7770479 | G15: 1012.031138 | H15: 12.30392763 | I15: 11.86883909 | J15: 11.76556073 | K15: 96.46382395 | L15: 99.12983606
A16: II. | B16: SERVICIO DE LA DEUDA | C16: 112605.1864 | D16: 18498.66035 | E16: 17721.9086 | F16: 15334.74724 | G16: 94106.52605 | H16: 16.42789372 | I16: 15.73809268 | J16: 13.6181536 | K16: 95.80103783 | L16: 86.52988563
B17: Servicio de la Deuda Pública Externa | C17: 41029.422 | D17: 5589.143758 | E17: 4824.69606 | F17: 4401.56884 | G17: 35440.27824 | H17: 13.62228246 | I17: 11.75911291 | J17: 10.72783536 | K17: 86.32263311 | L17: 91.22997148
B18: Principal | C18: 21772.59 | D18: 2731.141399 | E18: 2574.427684 | F18: 2539.39891 | G18: 19041.4486 | H18: 12.54394355 | I18: 11.8241683 | J18: 11.66328356 | K18: 94.26196994 | L18: 98.63935683
B19: Intereses | C19: 19104.45816 | D19: 2819.326254 | E19: 2233.59826 | F19: 1845.890158 | G19: 16285.1319 | H19: 14.75742589 | I19: 11.6915028 | J19: 9.662091138 | K19: 79.22454015 | L19: 82.64199481
B20: Comisiones y Otros Gastos | C20: 152.3738446 | D20: 38.67610586 | E20: 16.67011611 | F20: 16.27977168 | G20: 113.6977387 | H20: 25.38237843 | I20: 10.940274 | J20: 10.68409852 | K20: 43.10184734 | L20: 97.65841807
B21: Servicio de la Deuda Pública Interna | C21: 71575.76439 | D21: 12909.51659 | E21: 12897.21254 | F21: 10933.1784 | G21: 58666.2478 | H21: 18.03615609 | I21: 18.01896584 | J21: 15.2749726 | K21: 99.90469006 | L21: 84.7716386
B22: Principal | C22: 28993.66678 | D22: 1486.897691 | E22: 1486.897691 | F22: 1285.127213 | G22: 27506.76909 | H22: 5.128353381 | I22: 5.128353381 | J22: 4.432441135 | K22: 100 | L22: 86.43010349
B23: Intereses | C23: 40380.19015 | D23: 11160.40537 | E23: 11160.40537 | F23: 9398.141712 | G23: 29219.78478 | H23: 27.63831802 | I23: 27.63831802 | J23: 23.27413932 | K23: 100 | L23: 84.20968057
B24: Comisiones y Otros Gastos | C24: 294.8098498 | D24: 12.82419061 | E24: 0.5201387134 | F24: 0.5201387134 | G24: 281.9856592 | H24: 4.34998716 | I24: 0.1764319319 | J24: 0.1764319319 | K24: 4.055918452 | L24: 100
B25: Fondo de contingencias | C25: 1907.097618 | D25: 249.3893395 | E25: 249.3893395 | F25: 249.3893395 | G25: 1657.708279 | H25: 13.07690478 | I25: 13.07690478 | J25: 13.07690478 | K25: 100 | L25: 100
A26: III. | B26: INVERSIÓN | C26: 69784.28111 | D26: 30237.64983 | E26: 5492.297201 | F26: 5421.131975 | G26: 39546.63127 | H26: 43.33017315 | I26: 7.870393037 | J26: 7.76841416 | K26: 18.16377011 | L26: 98.70427212
A27: IV. | B27: TOTAL (I + II + III) | C27: 498466.6686 | D27: 133739.3966 | E27: 79906.79083 | F27: 76340.55792 | G27: 364727.272 | H27: 26.83015837 | I27: 16.03051836 | J27: 15.31507776 | K27: 59.74813171 | L27: 95.53700897
A28: V. | B28: TOTAL SIN DEUDA (I + III) | C28: 385861.4822 | D28: 115240.7363 | E28: 62184.88223 | F28: 61005.81068 | G28: 270620.7459 | H28: 29.86583051 | I28: 16.11585636 | J28: 15.81028776 | K28: 53.96085121 | L28: 98.10392573
A29: Fuente: Dirección General del Presupuesto Público Nacional- Subdirección de Análisis y Consolidación Presupuestal
C31: =+C27-'CUA5'!B8 -> 0 | D31: =+D28+'CUA3'!D26-'CUA1'!D28 -> 0 | E31: =+E28+'CUA3'!E26-'CUA1'!E28 -> 0 | F31: =+F28+'CUA3'!F26-'CUA1'!F28 -> 0 | G31: =+G28+'CUA3'!G26-'CUA1'!G28 -> 0
C37: =+C8/'CUA1'!C8 -> 0.9600299648
C38: =+C16/'CUA1'!C16 -> 1

Sheet CUA3
A1: Cuadro No. 3
A2: Ejecución del presupuesto recursos Propios
A3: =+'CUA1'!A3:L3 -> Acumulada a marzo 2025
A4: Miles de millones de pesos corrientes
B5: Concepto | C5: Apropiación Vigente | D5: Compromiso | E5: Obligación | F5: Pago | G5: Apropiación sin comprometer | H5: Porcentaje de ejecución
C6: Vigente | H6: Comp./Apro. | I6: Oblig./Apro. | J6: Pago/Apro. | K6: Oblig./Comp. | L6: Pago/Oblig.
C7: (1) | D7: (2) | E7: (3) | F7: (4) | G7: (5)=(1-2) | H7: (6)=(2/1) | I7: (7)=(3/1) | J7: (8)=(4/1) | K7: (9)=(3/2) | L7: (10)=(4/3)
A8: I. | B8: FUNCIONAMIENTO | C8: 13159.60679 | D8: 4944.819986 | E8: 3423.627279 | F8: 3339.801071 | G8: 8214.786802 | H8: 37.57574269 | I8: 26.0161822 | J8: 25.3791859 | K8: 69.23664134 | L8: 97.55153815
B9: Gastos de Personal | C9: 3598.439601 | D9: 712.858716 | E9: 626.6105059 | F9: 624.0006107 | G9: 2885.580885 | H9: 19.81021762 | I9: 17.41339512 | J9: 17.3408666 | K9: 87.9010794 | L9: 99.58349002
B10: Adquisición de Bienes y Servicios | C10: 1305.907625 | D10: 711.172078 | E10: 149.1953979 | F10: 138.7318595 | G10: 594.735547 | H10: 54.45806919 | I10: 11.42465172 | J10: 10.62340527 | K10: 20.97880422 | L10: 92.98668824
B11: Transferencias | C11: 6047.466386 | D11: 2856.723183 | E11: 2392.573816 | F11: 2392.345071 | G11: 3190.743203 | H11: 47.23834745 | I11: 39.5632429 | J11: 39.55946042 | K11: 83.7523856 | L11: 99.9904394
B12: Gastos de Comercialización y Producción | C12: 1937.448332 | D12: 628.7600073 | E12: 223.2038472 | F12: 153.4513586 | G12: 1308.688324 | H12: 32.45299485 | I12: 11.52050579 | J12: 7.920281337 | K12: 35.49905284 | L12: 68.7494237
B13: Adquisición de Activos Financieros | C13: 128.2611267 | D13: 11.84893711 | E13: 11.84816809 | F13: 11.69591228 | G13: 116.4121896 | H13: 9.238135832 | I13: 9.237536258 | J13: 9.118828579 | K13: 99.99350979 | L13: 98.71494221
B14: Disminución de Pasivos | C14: 16.701 | D14: 1.00124617 | E14: 0.997011554 | F14: 0.997011554 | G14: 15.69975383 | H14: 5.995127058 | I14: 5.969771595 | J14: 5.969771595 | K14: 99.57706545 | L14: 100
B15: Gastos por Tributos, Multas, Sanciones e Intereses de Mora | C15: 125.3827171 | D15: 22.45581809 | E15: 19.19853214 | F15: 18.57924689 | G15: 102.926899 | H15: 17.90981932 | I15: 15.31194457 | J15: 14.81802861 | K15: 85.49469036 | L15: 96.77430937
A16: II. | B16: SERVICIO DE LA DEUDA | C16: 0 | D16: 0 | E16: 0 | F16: 0 | G16: 0 | H16: 0 | I16: 0 | J16: 0 | K16: 0 | L16: 0
B17: Servicio de la Deuda Pública Externa | C17: 0 | D17: 0 | E17: 0 | F17: 0 | G17: 0 | H17: 0 | I17: 0 | J17: 0 | K17: 0 | L17: 0
B18: Principal | C18: 0 | D18: 0 | E18: 0 | F18: 0 | G18: 0 | H18: 0 | I18: 0 | J18: 0 | K18: 0 | L18: 0
B19: Intereses | C19: 0 | D19: 0 | E19: 0 | F19: 0 | G19: 0 | H19: 0 | I19: 0 | J19: 0 | K19: 0 | L19: 0
B20: Comisiones y Otros Gastos | C20: 0 | D20: 0 | E20: 0 | F20: 0 | G20: 0 | H20: 0 | I20: 0 | J20: 0 | K20: 0 | L20: 0
B21: Servicio de la Deuda Pública Interna | C21: 0 | D21: 0 | E21: 0 | F21: 0 | G21: 0 | H21: 0 | I21: 0 | J21: 0 | K21: 0 | L21: 0
B22: Principal | H22: 0 | I22: 0 | J22: 0 | K22: 0 | L22: 0
B23: Fondo de Contingencias | C23: 0 | D23: 0 | E23: 0 | F23: 0 | G23: 0 | H23: 0 | I23: 0 | J23: 0 | K23: 0 | L23: 0
A24: III. | B24: INVERSIÓN | C24: 14176.85708 | D24: 6125.181127 | E24: 1135.716198 | F24: 1111.033632 | G24: 8051.675952 | H24: 43.20549395 | I24: 8.011057683 | J24: 7.836953039 | K24: 18.54175696 | L24: 97.82669591
A25: IV. | B25: TOTAL (I + II + III) | C25: 27336.46387 | D25: 11070.00111 | E25: 4559.343477 | F25: 4450.834703 | G25: 16266.46275 | H25: 40.49536607 | I25: 16.67861469 | J25: 16.28167683 | K25: 41.18647713 | L25: 97.62007897
A26: V. | B26: TOTAL SIN DEUDA (I + III) | C26: 27336.46387 | D26: 11070.00111 | E26: 4559.343477 | F26: 4450.834703 | G26: 16266.46275 | H26: 40.49536607 | I26: 16.67861469 | J26: 16.28167683 | K26: 41.18647713 | L26: 97.62007897
A27: Fuente: Dirección General del Presupuesto Público Nacional- Subdirección de Análisis y Consolidación Presupuestal
C30: =+C25-'CUA6'!B8 -> 0 | D30: =+D25-'CUA6'!C8 -> 0 | E30: =+E25-'CUA6'!D8 -> 0 | F30: =+F25-'CUA6'!E8 -> 0
C34: =+C8/'CUA1'!C8 -> 0.03997003516
C35: =+C24/'CUA1'!C26 -> 0.1688502251

Sheet CUA4
A1: Cuadro No. 4
A2: Ejecución Presupuesto General de la Nación por sectores
A3: =+'CUA1'!A3:L3 -> Acumulada a marzo 2025
A4: Miles de millones de pesos
A5: Sector | B5: Apropiación Vigente | C5: Compromiso | D5: Obligación | E5: Pago | F5: Apropiación sin comprometer | G5: Porcentaje de ejecución
B6: Vigente | G6: Comp./Apro. | H6: Oblig./Apro. | I6: Pago/Apro. | J6: Oblig./Comp. | K6: Pago/Oblig.
B7: (1) | C7: (2) | D7: (3) | E7: (4) | F7: (5)=(1-2) | G7: (6)=(2/1) | H7: (7)=(3/1) | I7: (8)=(4/1) | J7: (9)=(3/2) | K7: (10)=(4/3)
A8: TOTAL PGN | B8: 525803.1325 | C8: 144809.3977 | D8: 84466.13431 | E8: 80791.39262 | F8: 380993.7347 | G8: 27.54061145 | H8: 16.06421284 | I8: 15.36533117 | J8: 58.32918004 | K8: 95.64944967
A9: SERVICIO DE LA DEUDA PÚBLICA NACIONAL | B9: 109828.422 | C9: 18050.8003 | D9: 17274.04855 | E9: 14886.88719 | F9: 91777.6217 | G9: 16.43545448 | H9: 15.72821337 | I9: 13.5546764 | J9: 95.696857 | K9: 86.18064926
A10: EDUCACIÓN | B10: 79496.47566 | C10: 35474.2788 | D10: 17761.56478 | E10: 16791.47587 | F10: 44022.19685 | G10: 44.62371257 | H10: 22.34258139 | I10: 21.12228968 | J10: 50.06885377 | K10: 94.5382689
A11: SALUD Y PROTECCIÓN SOCIAL | B11: 67161.78908 | C11: 17629.2128 | D11: 14465.54652 | E11: 14464.19804 | F11: 49532.57628 | G11: 26.24887312 | H11: 21.53835792 | I11: 21.53635012 | J11: 82.0544098 | K11: 99.99067802
A12: DEFENSA Y POLICÍA | B12: 59961.9809 | C12: 15336.04235 | D12: 10886.59446 | E12: 10732.56453 | F12: 44625.93854 | G12: 25.57627704 | H12: 18.15582858 | I12: 17.89894925 | J12: 70.98698747 | K12: 98.58514124
A13: TRABAJO | B13: 53404.42189 | C13: 7760.787434 | D13: 6141.277868 | E13: 6129.634422 | F13: 45643.63446 | G13: 14.53210644 | H13: 11.49956811 | I13: 11.47776571 | J13: 79.13214889 | K13: 99.8104068
A14: HACIENDA | B14: 35902.3877 | C14: 5931.937397 | D14: 3101.182543 | E14: 3098.272477 | F14: 29970.4503 | G14: 16.5224036 | H14: 8.637816986 | I14: 8.629711492 | J14: 52.2794213 | K14: 99.9061627
A15: TRANSPORTE | B15: 17386.79467 | C15: 9837.157184 | D15: 1819.997106 | E15: 1797.113532 | F15: 7549.637487 | G15: 56.57832493 | H15: 10.4676977 | I15: 10.33608302 | J15: 18.50125063 | K15: 98.7426588
A16: IGUALDAD Y EQUIDAD | B16: 12117.47558 | C16: 7991.228297 | D16: 1571.535335 | E16: 1570.459083 | F16: 4126.247285 | G16: 65.94796286 | H16: 12.96916445 | I16: 12.96028263 | J16: 19.66575446 | K16: 99.9315159
A17: MINAS Y ENERGÍA | B17: 11214.44332 | C17: 3342.084074 | D17: 2162.947267 | E17: 2155.612999 | F17: 7872.359244 | G17: 29.80160476 | H17: 19.2871568 | I17: 19.2217566 | J17: 64.71851754 | K17: 99.66091321
A18: RAMA JUDICIAL | B18: 10414.88358 | C18: 2054.276208 | D18: 1659.692432 | E18: 1645.74955 | F18: 8360.607371 | G18: 19.72442795 | H18: 15.93577518 | I18: 15.80190059 | J18: 80.79207782 | K18: 99.15991166
A19: INCLUSIÓN SOCIAL Y RECONCILIACIÓN | B19: 10346.16828 | C19: 1471.226744 | D19: 910.7406163 | E19: 908.26908 | F19: 8874.94154 | G19: 14.2200156 | H19: 8.802685122 | I19: 8.778796701 | J19: 61.90348429 | K19: 99.72862347
A20: VIVIENDA, CIUDAD Y TERRITORIO | B20: 8728.554779 | C20: 4007.095903 | D20: 1187.079727 | E20: 1187.027918 | F20: 4721.458876 | G20: 45.9078966 | H20: 13.59995735 | I20: 13.59936379 | J20: 29.62444015 | K20: 99.99563557
A21: FISCALÍA | B21: 7137.16978 | C21: 1917.117215 | D21: 1325.437481 | E21: 1315.298234 | F21: 5220.052565 | G21: 26.86102859 | H21: 18.57091146 | I21: 18.4288489 | J21: 69.13700793 | K21: 99.23502642
A22: JUSTICIA Y DEL DERECHO | B22: 5520.699808 | C22: 1508.687857 | D22: 651.2183504 | E22: 631.4760416 | F22: 4012.011951 | G22: 27.32783723 | H22: 11.79593843 | I22: 11.43833325 | J22: 43.16455171 | K22: 96.9684041
A23: AGRICULTURA Y DESARROLLO RURAL | B23: 5244.040437 | C23: 1428.025821 | D23: 267.935912 | E23: 247.1729936 | F23: 3816.014616 | G23: 27.23140369 | H23: 5.109341074 | I23: 4.713407468 | J23: 18.76267978 | K23: 92.2507893
A24: REGISTRADURÍA | B24: 4592.600812 | C24: 475.49755 | D24: 189.8423143 | E24: 189.8348111 | F24: 4117.103262 | G24: 10.35355716 | H24: 4.133655897 | I24: 4.133492522 | J24: 39.92498265 | K24: 99.99604767
A25: INTERIOR | B25: 4475.913706 | C25: 2197.626929 | D25: 503.4183013 | E25: 488.6072663 | F25: 2278.286777 | G25: 49.09895662 | H25: 11.24727451 | I25: 10.91636923 | J25: 22.90735951 | K25: 97.05790692
A26: ORGANISMOS DE CONTROL | B26: 4415.918145 | C26: 960.8648855 | D26: 707.03946 | E26: 705.0096628 | F26: 3455.053259 | G26: 21.75911903 | H26: 16.01115412 | I26: 15.96518866 | J26: 73.58365059 | K26: 99.712916
A27: PRESIDENCIA DE LA REPÚBLICA | B27: 2951.179924 | C27: 1376.201529 | D27: 108.9117683 | E27: 108.7190316 | F27: 1574.978395 | G27: 46.63224759 | H27: 3.690448264 | I27: 3.68391743 | J27: 7.913940361 | K27: 99.82303414
A28: TECNOLOGÍAS DE LA INFORMACIÓN Y LAS COMUNICACIONES | B28: 2741.750844 | C28: 1465.791082 | D28: 205.0784996 | E28: 200.0275416 | F28: 1275.959763 | G28: 53.46186306 | H28: 7.479837199 | I28: 7.295613384 | J28: 13.99097744 | K28: 97.53706116
A29: RELACIONES EXTERIORES | B29: 2095.33793 | C29: 693.2404138 | D29: 289.3375504 | E29: 289.0763472 | F29: 1402.097517 | G29: 33.08489785 | H29: 13.80863422 | I29: 13.79616829 | J29: 41.73697099 | K29: 99.90972371
A30: AMBIENTE Y DESARROLLO SOSTENIBLE | B30: 1781.308693 | C30: 773.2697499 | D30: 351.459718 | E30: 350.3955921 | F30: 1008.038943 | G30: 43.4102047 | H30: 19.73042176 | I30: 19.67068333 | J30: 45.45111432 | K30: 99.69722678
A31: COMERCIO, INDUSTRIA Y TURISMO | B31: 1524.450332 | C31: 718.5778692 | D31: 153.4200877 | E31: 151.9924336 | F31: 805.8724629 | G31: 47.13685019 | H31: 10.06396105 | I31: 9.970310635 | J31: 21.35051666 | K31: 99.06944772
A32: CONGRESO DE LA REPÚBLICA | B32: 1313.628 | C32: 343.6752635 | D32: 201.3539871 | E32: 196.7769663 | F32: 969.9527365 | G32: 26.16229735 | H32: 15.32808277 | I32: 14.97965682 | J32: 58.58844337 | K32: 97.72687847
A33: PLANEACIÓN | B33: 1277.47619 | C33: 335.9001115 | D33: 74.07876118 | E33: 71.8106946 | F33: 941.5760785 | G33: 26.29404087 | H33: 5.798836938 | I33: 5.621294171 | J33: 22.05380667 | K33: 96.93830385
A34: INFORMACIÓN ESTADÍSTICA | B34: 1174.1439 | C34: 383.5594353 | D34: 83.67356268 | E34: 83.08460228 | F34: 790.5844647 | G34: 32.66715735 | H34: 7.126346496 | I34: 7.07618566 | J34: 21.81501874 | K34: 99.29612129
A35: CULTURA | B35: 1090.762537 | C35: 357.0501626 | D35: 130.3932486 | E35: 116.6646804 | F35: 733.7123747 | G35: 32.73399575 | H35: 11.95432041 | I35: 10.69569924 | J35: 36.51958807 | K35: 89.47141182
A36: SISTEMA INTEGRAL DE VERDAD, JUSTICIA, REPARACIÓN Y NO REPETICIÓN | B36: 931.074301 | C36: 432.0529969 | D36: 156.4264138 | E36: 156.1144041 | F36: 499.021304 | G36: 46.40370768 | H36: 16.80063703 | I36: 16.76712631 | J36: 36.2053764 | K36: 99.800539
A37: EMPLEO PÚBLICO | B37: 613.8294937 | C37: 302.9650547 | D37: 58.99635647 | E37: 57.23029576 | F37: 310.8644391 | G37: 49.35654897 | H37: 9.611196116 | I37: 9.323484183 | J37: 19.47299055 | K37: 97.00649191
A38: DEPORTE Y RECREACIÓN | B38: 464.3658176 | C38: 41.33437964 | D38: 13.16587156 | E38: 13.16302456 | F38: 423.0314379 | G38: 8.901253726 | H38: 2.835237018 | I38: 2.834623924 | J38: 31.85210876 | K38: 99.97837591
A39: CIENCIA, TECNOLOGÍA E INNOVACIÓN | B39: 299.8643731 | C39: 153.3547441 | D39: 23.46867667 | E39: 23.46867667 | F39: 146.509629 | G39: 51.14136851 | H39: 7.82643047 | I39: 7.82643047 | J39: 15.30352178 | K39: 100
A40: INTELIGENCIA | B40: 193.82 | C40: 58.47717648 | D40: 29.27078243 | E40: 28.20462451 | F40: 135.3428235 | G40: 30.17086807 | H40: 15.10204439 | I40: 14.55196807 | J40: 50.05505428 | K40: 96.35760362
A41: Fuente: Dirección General del Presupuesto Público Nacional- Subdirección de Análisis y Consolidación Presupuestal
B44: =+B8-'CUA1'!C27 -> 0 | C44: =+C8-'CUA1'!D27 -> 0 | D44: =+D8-'CUA1'!E27 -> 0 | E44: =+E8-'CUA1'!F27 -> 0 | F44: =+F8-'CUA1'!G27 -> 0

Sheet CUA5
A1: Cuadro No. 5
A2: Ejecución del presupuesto recursos Nación por sectores
A3: =+'CUA1'!A3:L3 -> Acumulada a marzo 2025
A4: Miles de millones de pesos
A5: Sector | B5: Apropiación Vigente | C5: Compromiso | D5: Obligación | E5: Pago | F5: Apropiación sin comprometer | G5: Porcentaje de ejecución
B6: Vigente | G6: Comp./Apro. | H6: Oblig./Apro. | I6: Pago/Apro. | J6: Oblig./Comp. | K6: Pago/Oblig.
B7: (1) | C7: (2) | D7: (3) | E7: (4) | F7: (5)=(1-2) | G7: (6)=(2/1) | H7: (7)=(3/1) | I7: (8)=(4/1) | J7: (9)=(3/2) | K7: (10)=(4/3)
A8: TOTAL RECURSOS NACIÓN | B8: 498466.6686 | C8: 133739.3966 | D8: 79906.79083 | E8: 76340.55792 | F8: 364727.272 | G8: 26.83015837 | H8: 16.03051836 | I8: 15.31507776 | J8: 59.74813171 | K8: 95.53700897
A9: SERVICIO DE LA DEUDA PÚBLICA NACIONAL | B9: 109828.422 | C9: 18050.8003 | D9: 17274.04855 | E9: 14886.88719 | F9: 91777.6217 | G9: 16.43545448 | H9: 15.72821337 | I9: 13.5546764 | J9: 95.696857 | K9: 86.18064926
A10: EDUCACIÓN | B10: 79436.80626 | C10: 35459.23046 | D10: 17756.76266 | E10: 16786.80419 | F10: 43977.5758 | G10: 44.63828813 | H10: 22.35331894 | I10: 21.1322748 | J10: 50.07655955 | K10: 94.53752643
A11: SALUD Y PROTECCIÓN SOCIAL | B11: 66283.58353 | C11: 17311.34749 | D11: 14354.74178 | E11: 14353.67655 | F11: 48972.23604 | G11: 26.11709653 | H11: 21.65655659 | I11: 21.65494951 | J11: 82.92099608 | K11: 99.99257926
A12: DEFENSA Y POLICÍA | B12: 57046.30066 | C12: 14542.69483 | D12: 10470.49651 | E12: 10386.68556 | F12: 42503.60584 | G12: 25.49279209 | H12: 18.35438301 | I12: 18.20746558 | J12: 71.99832383 | K12: 99.19955127
A13: TRABAJO | B13: 50334.01156 | C13: 7284.141556 | D13: 5858.491956 | E13: 5848.309323 | F13: 43049.87001 | G13: 14.47160942 | H13: 11.63923116 | I13: 11.61900103 | J13: 80.42803549 | K13: 99.8261902
A14: HACIENDA | B14: 35376.49924 | C14: 5839.516172 | D14: 3041.773988 | E14: 3038.864498 | F14: 29536.98306 | G14: 16.50676663 | H14: 8.598289976 | I14: 8.590065619 | J14: 52.08948649 | K14: 99.90434892
A15: TRANSPORTE | B15: 12415.98193 | C15: 7616.401369 | D15: 1495.875563 | E15: 1486.624345 | F15: 4799.580559 | G15: 61.34352815 | H15: 12.04798437 | I15: 11.97347381 | J15: 19.6401882 | K15: 99.38155166
A16: RAMA JUDICIAL | B16: 10414.88358 | C16: 2054.276208 | D16: 1659.692432 | E16: 1645.74955 | F16: 8360.607371 | G16: 19.72442795 | H16: 15.93577518 | I16: 15.80190059 | J16: 80.79207782 | K16: 99.15991166
A17: INCLUSIÓN SOCIAL Y RECONCILIACIÓN | B17: 10279.98081 | C17: 1471.226744 | D17: 910.7406163 | E17: 908.26908 | F17: 8808.754068 | G17: 14.31157092 | H17: 8.859361053 | I17: 8.835318826 | J17: 61.90348429 | K17: 99.72862347
A18: VIVIENDA, CIUDAD Y TERRITORIO | B18: 8728.554779 | C18: 4007.095903 | D18: 1187.079727 | E18: 1187.027918 | F18: 4721.458876 | G18: 45.9078966 | H18: 13.59995735 | I18: 13.59936379 | J18: 29.62444015 | K18: 99.99563557
A19: IGUALDAD Y EQUIDAD | B19: 7695.205123 | C19: 5700.449106 | D19: 892.5535505 | E19: 891.6834979 | F19: 1994.756017 | G19: 74.07793574 | H19: 11.59882727 | I19: 11.58752085 | J19: 15.65760055 | K19: 99.90252097
A20: MINAS Y ENERGÍA | B20: 7193.515649 | C20: 1152.676566 | D20: 84.66200559 | E20: 83.12297491 | F20: 6040.839084 | G20: 16.02382787 | H20: 1.176921129 | I20: 1.155526435 | J20: 7.344818843 | K20: 98.18214716
A21: FISCALÍA | B21: 7095.704065 | C21: 1884.981864 | D21: 1321.122511 | E21: 1310.986896 | F21: 5210.722201 | G21: 26.56511386 | H21: 18.61862472 | I21: 18.47578314 | J21: 70.08674918 | K21: 99.23280275
A22: AGRICULTURA Y DESARROLLO RURAL | B22: 5120.467155 | C22: 1382.105633 | D22: 257.5925564 | E22: 240.6250035 | F22: 3738.361522 | G22: 26.99178789 | H22: 5.030645615 | I22: 4.699278332 | J22: 18.63768949 | K22: 93.41302669
A23: JUSTICIA Y DEL DERECHO | B23: 4420.209349 | C23: 1222.928921 | D23: 560.775657 | E23: 545.4262499 | F23: 3197.280428 | G23: 27.66676472 | H23: 12.68663117 | I23: 12.33937596 | J23: 45.85513087 | K23: 97.2628257
A24: ORGANISMOS DE CONTROL | B24: 4396.345327 | C24: 958.7154018 | D24: 704.8899763 | E24: 702.8601792 | F24: 3437.629925 | G24: 21.80709955 | H24: 16.03354432 | I24: 15.98737421 | J24: 73.52442392 | K24: 99.71204057
A25: REGISTRADURÍA | B25: 4321.351017 | C25: 361.8010226 | D25: 170.9124855 | E25: 170.9073667 | F25: 3959.549994 | G25: 8.372405325 | H25: 3.955070644 | I25: 3.954952191 | J25: 47.23935943 | K25: 99.99700505
A26: INTERIOR | B26: 4299.914104 | C26: 2170.748503 | D26: 495.3505879 | E26: 480.7763557 | F26: 2129.165601 | G26: 50.48353178 | H26: 11.52001124 | I26: 11.18106883 | J26: 22.8193449 | K26: 97.0577945
A27: PRESIDENCIA DE LA REPÚBLICA | B27: 2853.239364 | C27: 1376.040633 | D27: 108.9117683 | E27: 108.7190316 | F27: 1477.198732 | G27: 48.22731138 | H27: 3.817126934 | I27: 3.810371923 | J27: 7.914865716 | K27: 99.82303414
A28: AMBIENTE Y DESARROLLO SOSTENIBLE | B28: 1500.701187 | C28: 575.7402092 | D28: 244.363317 | E28: 243.3270103 | F28: 924.9609781 | G28: 38.3647467 | H28: 16.28327605 | I28: 16.21422122 | J28: 42.44333002 | K28: 99.5759156
A29: RELACIONES EXTERIORES | B29: 1490.253752 | C29: 444.5906043 | D29: 238.351313 | E29: 238.2984786 | F29: 1045.663148 | G29: 29.83321489 | H29: 15.99400858 | I29: 15.99046325 | J29: 53.61141479 | K29: 99.97783342
A30: CONGRESO DE LA REPÚBLICA | B30: 1313.628 | C30: 343.6752635 | D30: 201.3539871 | E30: 196.7769663 | F30: 969.9527365 | G30: 26.16229735 | H30: 15.32808277 | I30: 14.97965682 | J30: 58.58844337 | K30: 97.72687847
A31: CULTURA | B31: 1068.4397 | C31: 351.7326266 | D31: 130.0666772 | E31: 116.3519893 | F31: 716.7070737 | G31: 32.92021314 | H31: 12.17351594 | I31: 10.88989761 | J31: 36.97884909 | K31: 89.45564832
A32: INFORMACIÓN ESTADÍSTICA | B32: 1051.190432 | C32: 371.9196567 | D32: 81.02839098 | E32: 80.51151459 | F32: 679.2707754 | G32: 35.38080688 | H32: 7.708250428 | I32: 7.659079852 | J32: 21.78653091 | K32: 99.36210458
A33: PLANEACIÓN | B33: 1018.330446 | C33: 292.0473355 | D33: 44.83353157 | E33: 42.7681075 | F33: 726.2831105 | G33: 28.67903406 | H33: 4.402650607 | I33: 4.199826065 | J33: 15.35146057 | K33: 95.39312654
A34: SISTEMA INTEGRAL DE VERDAD, JUSTICIA, REPARACIÓN Y NO REPETICIÓN | B34: 931.074301 | C34: 432.0529969 | D34: 156.4264138 | E34: 156.1144041 | F34: 499.021304 | G34: 46.40370768 | H34: 16.80063703 | I34: 16.76712631 | J34: 36.2053764 | K34: 99.800539
A35: COMERCIO, INDUSTRIA Y TURISMO | B35: 896.5165075 | C35: 517.0076496 | D35: 89.26904204 | E35: 89.06659004 | F35: 379.508858 | G35: 57.66850306 | H35: 9.957322736 | I35: 9.934740665 | J35: 17.2664838 | K35: 99.77321142
A36: TECNOLOGÍAS DE LA INFORMACIÓN Y LAS COMUNICACIONES | B36: 642.6714113 | C36: 297.2821442 | D36: 37.96033771 | E36: 37.88241354 | F36: 345.3892671 | G36: 46.25725355 | H36: 5.906647946 | I36: 5.894522904 | J36: 12.76912807 | K36: 99.79472212
A37: DEPORTE Y RECREACIÓN | B37: 464.3658176 | C37: 41.33437964 | D37: 13.16587156 | E37: 13.16302456 | F37: 423.0314379 | G37: 8.901253726 | H37: 2.835237018 | I37: 2.834623924 | J37: 31.85210876 | K37: 99.97837591
A38: CIENCIA, TECNOLOGÍA E INNOVACIÓN | B38: 299.8643731 | C38: 153.3547441 | D38: 23.46867667 | E38: 23.46867667 | F38: 146.509629 | G38: 51.14136851 | H38: 7.82643047 | I38: 7.82643047 | J38: 15.30352178 | K38: 100
A39: INTELIGENCIA | B39: 193.82 | C39: 58.47717648 | D39: 29.27078243 | E39: 28.20462451 | F39: 135.3428235 | G39: 30.17086807 | H39: 15.10204439 | I39: 14.55196807 | J39: 50.05505428 | K39: 96.35760362
A40: EMPLEO PÚBLICO | B40: 54.83716489 | C40: 13.00314705 | D40: 10.757612 | E40: 10.61836142 | F40: 41.83401785 | G40: 23.71228905 | H40: 19.61737449 | I40: 19.36343982 | J40: 82.73083399 | K40: 98.70556243
A41: Fuente: Dirección General del Presupuesto Público Nacional- Subdirección de Análisis y Consolidación Presupuestal
B44: =+B8-'CUA2'!C27 -> 0 | C44: =+C8-'CUA2'!D27 -> 0 | D44: =+D8-'CUA2'!E27 -> 0 | E44: =+E8-'CUA2'!F27 -> 0 | F44: =+F8-'CUA2'!G27 -> 0

Sheet CUA6
A1: Cuadro No. 6
A2: Ejecución del presupuesto recursos Propios por sectores
A3: =+'CUA1'!A3:L3 -> Acumulada a marzo 2025
A4: Miles de millones de pesos
A5: Sector | B5: Apropiación Vigente | C5: Compromiso | D5: Obligación | E5: Pago | F5: Apropiación sin comprometer | G5: Porcentaje de ejecución
B6: Vigente | G6: Comp./Apro. | H6: Oblig./Apro. | I6: Pago/Apro. | J6: Oblig./Comp. | K6: Pago/Oblig.
B7: (1) | C7: (2) | D7: (3) | E7: (4) | F7: (5)=(1-2) | G7: (6)=(2/1) | H7: (7)=(3/1) | I7: (8)=(4/1) | J7: (9)=(3/2) | K7: (10)=(4/3)
A8: TOTAL RECURSOS PROPIOS | B8: 27336.46387 | C8: 11070.00111 | D8: 4559.343477 | E8: 4450.834703 | F8: 16266.46275 | G8: 40.49536607 | H8: 16.67861469 | I8: 16.28167683 | J8: 41.18647713 | K8: 97.62007897
A9: TRANSPORTE | B9: 4970.812742 | C9: 2220.755815 | D9: 324.1215431 | E9: 310.4891872 | F9: 2750.056928 | G9: 44.67590975 | H9: 6.52049393 | I9: 6.246245902 | J9: 14.5951005 | K9: 95.79406053
A10: IGUALDAD Y EQUIDAD | B10: 4422.270459 | C10: 2290.779191 | D10: 678.9817847 | E10: 678.7755853 | F10: 2131.491268 | G10: 51.80097446 | H10: 15.35369198 | I10: 15.34902923 | J10: 29.63977442 | K10: 99.96963109
A11: MINAS Y ENERGÍA | B11: 4020.927669 | C11: 2189.407508 | D11: 2078.285262 | E11: 2072.490024 | F11: 1831.520161 | G11: 54.4503082 | H11: 51.68671096 | I11: 51.54258407 | J11: 94.9245517 | K11: 99.72115292
A12: TRABAJO | B12: 3070.410329 | C12: 476.6458776 | D12: 282.7859119 | E12: 281.3250997 | F12: 2593.764451 | G12: 15.52384947 | H12: 9.210036496 | I12: 9.162459397 | J12: 59.32830329 | K12: 99.48342116
A13: DEFENSA Y POLICÍA | B13: 2915.680235 | C13: 793.3475273 | D13: 416.0979484 | E13: 345.8789702 | F13: 2122.332708 | G13: 27.2096891 | H13: 14.27104191 | I13: 11.86271958 | J13: 52.44838285 | K13: 83.12441132
A14: TECNOLOGÍAS DE LA INFORMACIÓN Y LAS COMUNICACIONES | B14: 2099.079433 | C14: 1168.508938 | D14: 167.1181619 | E14: 162.145128 | F14: 930.5704954 | G14: 55.66768552 | H14: 7.961497751 | I14: 7.724582761 | J14: 14.30183 | K14: 97.02424094
A15: JUSTICIA Y DEL DERECHO | B15: 1100.490459 | C15: 285.7589367 | D15: 90.44269332 | E15: 86.04979171 | F15: 814.7315225 | G15: 25.96650741 | H15: 8.218398676 | I15: 7.819221965 | J15: 31.64999646 | K15: 95.14288943
A16: SALUD Y PROTECCIÓN SOCIAL | B16: 878.205546 | C16: 317.8653084 | D16: 110.8047409 | E16: 110.5214935 | F16: 560.3402376 | G16: 36.19486461 | H16: 12.61717617 | I16: 12.5849232 | J16: 34.85902299 | K16: 99.74437249
A17: COMERCIO, INDUSTRIA Y TURISMO | B17: 627.9338246 | C17: 201.5702197 | D17: 64.15104567 | E17: 62.92584354 | F17: 426.3636049 | G17: 32.10055133 | H17: 10.21621119 | I17: 10.02109475 | J17: 31.82565648 | K17: 98.09012914
A18: RELACIONES EXTERIORES | B18: 605.084178 | C18: 248.6498095 | D18: 50.98623742 | E18: 50.77786854 | F18: 356.4343685 | G18: 41.09342444 | H18: 8.426304847 | I18: 8.391868503 | J18: 20.50523888 | K18: 99.5913233
A19: EMPLEO PÚBLICO | B19: 558.9923289 | C19: 289.9619077 | D19: 48.23874447 | E19: 46.61193434 | F19: 269.0304212 | G19: 51.87225167 | H19: 8.629589706 | I19: 8.338564222 | J19: 16.63623504 | K19: 96.62758608
A20: HACIENDA | B20: 525.8884612 | C20: 92.42122485 | D20: 59.40855524 | E20: 59.40797898 | F20: 433.4672363 | G20: 17.57430172 | H20: 11.29679764 | I20: 11.29668806 | J20: 64.28020765 | K20: 99.99903001
A21: AMBIENTE Y DESARROLLO SOSTENIBLE | B21: 280.6075056 | C21: 197.5295407 | D21: 107.096401 | E21: 107.0685818 | F21: 83.07796484 | G21: 70.39353432 | H21: 38.1659075 | I21: 38.15599358 | J21: 54.21791628 | K21: 99.97402415
A22: REGISTRADURÍA | B22: 271.2497952 | C22: 113.6965274 | D22: 18.92982883 | E22: 18.92744439 | F22: 157.5532678 | G22: 41.9158021 | H22: 6.978744009 | I22: 6.977864952 | J22: 16.64943448 | K22: 99.9874038
A23: PLANEACIÓN | B23: 259.1457439 | C23: 43.85277596 | D23: 29.24522961 | E23: 29.04258709 | F23: 215.2929679 | G23: 16.92205139 | H23: 11.28524404 | I23: 11.20704769 | J23: 66.68957431 | K23: 99.30709207
A24: INTERIOR | B24: 175.999602 | C24: 26.87842551 | D24: 8.067713378 | E24: 7.830910628 | F24: 149.1211765 | G24: 15.27186721 | H24: 4.583938422 | I24: 4.4493911 | J24: 30.01557281 | K24: 97.06480958
A25: AGRICULTURA Y DESARROLLO RURAL | B25: 123.5732821 | C25: 45.92018795 | D25: 10.34335554 | E25: 6.547990119 | F25: 77.65309414 | G25: 37.16028835 | H25: 8.370219978 | I25: 5.298872061 | J25: 22.52463678 | K25: 63.30624613
A26: INFORMACIÓN ESTADÍSTICA | B26: 122.9534679 | C26: 11.63977855 | D26: 2.645171697 | E26: 2.573087697 | F26: 111.3136894 | G26: 9.466815981 | H26: 2.151359975 | I26: 2.092732918 | J26: 22.7252751 | K26: 97.27488389
A27: PRESIDENCIA DE LA REPÚBLICA | B27: 97.94056 | C27: 0.1608966041 | D27: 0 | E27: 0 | F27: 97.7796634 | G27: 0.164279849 | H27: 0 | I27: 0 | J27: 0 | K27: 0
A28: INCLUSIÓN SOCIAL Y RECONCILIACIÓN | B28: 66.18747203 | C28: 0 | D28: 0 | E28: 0 | F28: 66.18747203 | G28: 0 | H28: 0 | I28: 0 | J28: 0 | K28: 0
A29: EDUCACIÓN | B29: 59.66940273 | C29: 15.04834674 | D29: 4.802123074 | E29: 4.671682215 | F29: 44.62105599 | G29: 25.21953639 | H29: 8.04788192 | I29: 7.829275979 | J29: 31.91130001 | K29: 97.28368355
A30: FISCALÍA | B30: 41.465715 | C30: 32.13535084 | D30: 4.314969682 | E30: 4.311338706 | F30: 9.330364162 | G30: 77.49860539 | H30: 10.40611426 | I30: 10.39735769 | J30: 13.42748584 | K30: 99.91585165
A31: CULTURA | B31: 22.32283694 | C31: 5.317536022 | D31: 0.3265713957 | E31: 0.3126910917 | F31: 17.00530092 | G31: 23.82105839 | H31: 1.462947548 | I31: 1.400767709 | J31: 6.141404484 | K31: 95.74968776
A32: ORGANISMOS DE CONTROL | B32: 19.57281803 | C32: 2.149483682 | D32: 2.149483682 | E32: 2.149483682 | F32: 17.42333435 | G32: 10.98198368 | H32: 10.98198368 | I32: 10.98198368 | J32: 100 | K32: 100
A33: Fuente: Dirección General del Presupuesto Público Nacional- Subdirección de Análisis y Consolidación Presupuestal
B36: =+B8-'CUA3'!C25 -> 0 | C36: =+C8-'CUA3'!D25 -> 0 | D36: =+D8-'CUA3'!E25 -> 0 | E36: =+E8-'CUA3'!F25 -> 0 | F36: =+F8-'CUA3'!G25 -> 0

Sheet CUA7
A1: Cuadro No. 7
A2: Ejecución del Presupuesto General de la Nación detallado por sector, entidad y rubro presupuestal
A3: =+[1]CUA1!A3:L3 -> Acumulada a Marzo 2025
A4: Cifras en Pesos
A5: Entidad/Detalle | B5: Apropiación Vigente | C5: Compromiso | D5: Obligación | E5: Pago | F5: Apropiación sin comprometer | G5: Porcentaje de Ejecución
G6: Comp/ Aprop | H6: Oblig/ Aprop | I6: Pago/ Aprop
A7: TOTAL | B7: =+[1]CUA1!C27*1000000000 -> 5.258031325e+14 | C7: =+[1]CUA1!D27*1000000000 -> 1.448093977e+14 | D7: =+[1]CUA1!E27*1000000000 -> 8.446613431e+13 | E7: =+[1]CUA1!F27*1000000000 -> 8.079139262e+13 | F7: =+B7-C7 -> 380993734731164 | G7: =IFERROR(IF(C7>0,+C7/B7*100,0),0) -> 27.54061145 | H7: =IFERROR(IF(D7>0,+D7/B7*100,0),0) -> 16.06421284 | I7: =IFERROR(IF(E7>0,+E7/B7*100,0),0) -> 15.36533117
A8: TOTAL SIN DEUDA | B8: =+[1]CUA1!C28*1000000000 -> 4.131979461e+14 | C8: =+[1]CUA1!D28*1000000000 -> 1.263107374e+14 | D8: =+[1]CUA1!E28*1000000000 -> 6.674422571e+13 | E8: =+[1]CUA1!F28*1000000000 -> 6.545664538e+13 | F8: =+B8-C8 -> 2.868872087e+14 | G8: =IFERROR(IF(C8>0,+C8/B8*100,0),0) -> 30.56906226 | H8: =IFERROR(IF(D8>0,+D8/B8*100,0),0) -> 16.15308748 | I8: 15.84147405
A9: AGRICULTURA Y DESARROLLO RURAL | B9: 5244040437000 | C9: 1.428025821e+12 | D9: 2.67935912e+11 | E9: 2.471729936e+11 | F9: =+B9-C9 -> 3.816014616e+12 | G9: =IFERROR(IF(C9>0,+C9/B9*100,0),0) -> 27.23140369 | H9: =IFERROR(IF(D9>0,+D9/B9*100,0),0) -> 5.109341074 | I9: 4.713407468
A10: 170101 Ministerio de Agricultura y Desarrollo Rural | B10: 1584725649864 | C10: 5.008184273e+11 | D10: 6.523761115e+10 | E10: 6.52265666e+10 | F10: =+B10-C10 -> 1.083907223e+12 | G10: =IFERROR(IF(C10>0,+C10/B10*100,0),0) -> 31.60284731 | H10: 4.11665017 | I10: 4.115953232
A11: Funcionamiento | B11: 477152969000 | C11: 2.423539761e+11 | D11: 5.993963716e+10 | E11: 5.992859261e+10 | F11: 2.347989929e+11 | G11: 50.79167307 | H11: 12.56193319 | I11: 12.55961851
A12: Gastos de Personal | B12: 36807073000 | C12: 6604351774 | D12: 6604351774 | E12: 6604351774 | F12: 30202721226 | G12: 17.94315939 | H12: 17.94315939 | I12: 17.94315939
A13: 01-01-01-- SALARIO | B13: 24121006000 | C13: 4392620816 | D13: 4392620816 | E13: 4392620816 | F13: 19728385184 | G13: 18.21076955 | H13: 18.21076955 | I13: 18.21076955
A14: 01-01-02-- CONTRIBUCIONES INHERENTES A LA NÓMINA | B14: 8786830000 | C14: 1714185162 | D14: 1714185162 | E14: 1714185162 | F14: 7072644838 | G14: 19.50857319 | H14: 19.50857319 | I14: 19.50857319
A15: 01-01-03-- REMUNERACIONES NO CONSTITUTIVAS DE FACTOR SALARIAL | B15: 3899237000 | C15: 497545796 | D15: 497545796 | E15: 497545796 | F15: 3401691204 | G15: 12.76008091 | H15: 12.76008091 | I15: 12.76008091
A16: Adquisición de Bienes y Servicios | B16: 15682000000 | C16: 8330350152 | D16: 1319848023 | E16: 1319848023 | F16: 7351649848 | G16: 53.12045755 | H16: 8.416324598 | I16: 8.416324598
A17: 02---- ADQUISICIÓN DE BIENES Y SERVICIOS | B17: 15682000000 | C17: 8330350152 | D17: 1319848023 | E17: 1319848023 | F17: 7351649848 | G17: 53.12045755 | H17: 8.416324598 | I17: 8.416324598
A18: Transferencias | B18: 413589896000 | C18: 2.207584713e+11 | D18: 4.535463456e+10 | E18: 4.534359001e+10 | F18: 1.928314247e+11 | G18: =IFERROR(IF(C18>0,+C18/B18*100,0),0) -> 53.37617613 | H18: 10.96608863 | I18: 10.96341822
A19: 03-03-01-020- FONDO DE FOMENTO AGROPECUARIO DECRETO LEY 1279 DE 1994 | B19: 428816000 | C19: 0 | D19: 0 | E19: 0 | F19: 428816000 | G19: 0 | H19: 0 | I19: 0
A20: 03-03-01-067- DESARROLLO DE FUNCIONES DE APOYO AL SECTOR AGROPECUARIO EN CIENCIA, TECNOLOGÍA E INNOVACIÓN A CARGO DE CORPOICA A NIVEL NACIONAL. LEY 1731 DE 2014 | B20: 226754750000 | C20: 216754750000 | D20: 41966000000 | E20: 41966000000 | F20: 10000000000 | G20: =IFERROR(IF(C20>0,+C20/B20*100,0),0) -> 95.58994905 | H20: 18.5072198 | I20: 18.5072198
A21: 03-03-01-999- OTRAS TRANSFERENCIAS - DISTRIBUCIÓN PREVIO CONCEPTO DGPPN | B21: 30000000000 | C21: 0 | D21: 0 | E21: 0 | F21: 30000000000 | G21: 0 | H21: 0 | I21: 0
A22: 03-03-04-050- TRANSFERENCIA A LA SOCIEDAD FIDUCIARIA DE DESARROLLO AGROPECUARIO S.A. FIDUAGRARIA - PATRIMONIO AUTÓNOMO DE REMANENTES - INCODER EN LIQUIDACIÓN | B22: 2430000000 | C22: 0 | D22: 0 | E22: 0 | F22: 2430000000 | G22: 0 | H22: 0 | I22: 0
A23: 03-04-02-004- BONOS PENSIONALES (DE PENSIONES) | B23: 1558477000 | C23: 0 | D23: 0 | E23: 0 | F23: 1558477000 | G23: 0 | H23: 0 | I23: 0
A24: 03-04-02-012- INCAPACIDADES Y LICENCIAS DE MATERNIDAD Y PATERNIDAD (NO DE PENSIONES) | B24: 186000000 | C24: 23437745 | D24: 23437745 | E24: 23437745 | F24: 162562255 | G24: 12.60093817 | H24: 12.60093817 | I24: 12.60093817
A25: 03-04-02-080- MESADAS PENSIONALES DEL IDEMA (DE PENSIONES) | B25: 3556452000 | C25: 539322308.6 | D25: 516404212.6 | E25: 505359662.6 | F25: 3017129691 | G25: 15.16461655 | H25: 14.52020757 | I25: 14.2096579
A26: 03-06-01-001- FORTALECIMIENTO DE LAS ASOCIACIONES Y LIGAS DE CONSUMIDORES (LEY 73 DE 1981 Y DECRETO 1320 DE 1982) | B26: 846284000 | C26: 0 | D26: 0 | E26: 0 | F26: 846284000 | G26: 0 | H26: 0 | I26: 0
A27: 03-11-02-001- TRANSFERENCIAS AL SECTOR AGRÍCOLA Y SECTOR INDUSTRIAL PARA APOYO A LA PRODUCCIÓN - ARTÍCULO 1 LEY 16 DE 1990 Y ARTÍCULO 1 LEY 101 DE 1993; LEY 795 DE 2003 | B27: 71826700000 | C27: 0 | D27: 0 | E27: 0 | F27: 71826700000 | G27: 0 | H27: 0 | I27: 0
A28: 03-11-06-004- APERTURA Y/U OPERACIÓN OFICINAS DE LA RED SOCIAL DEL BANCO AGRARIO A NIVEL NACIONAL. LEY 795 DE 2003 | B28: 2330000000 | C28: 0 | D28: 0 | E28: 0 | F28: 2330000000 | G28: 0 | H28: 0 | I28: 0
A29: 03-02-02-- A ORGANIZACIONES INTERNACIONALES | B29: 4103000000 | C29: 0 | D29: 0 | E29: 0 | F29: 4103000000 | G29: 0 | H29: 0 | I29: 0
A30: 03-10--- SENTENCIAS Y CONCILIACIONES | B30: 4500000000 | C30: 1440961278 | D30: 848792606 | E30: 848792606 | F30: 3059038722 | G30: 32.02136173 | H30: 18.86205791 | I30: 18.86205791
A31: 03-04-02-009- OBLIGACIONES CONVENCIONALES PENSIONADOS DEL IDEMA (OTRAS PRESTACIONES DE JUBILACIÓN) | B31: 121165000 | C31: 0 | D31: 0 | E31: 0 | F31: 121165000 | G31: 0 | H31: 0 | I31: 0
A32: 03-03-04-071- FONDO PARA EL ACCESO A LOS INSUMOS AGROPECUARIOS -FAIA, LEY 2183 DE 2022 | B32: 46000000000 | C32: 0 | D32: 0 | E32: 0 | F32: 46000000000 | G32: 0 | H32: 0 | I32: 0
A33: 03-03-04-070- FONDO DE FOMENTO PARA LAS MUJERES RURALES -FOMMUR, LEY 731 DE 2002 | B33: 16948252000 | C33: 0 | D33: 0 | E33: 0 | F33: 16948252000 | G33: 0 | H33: 0 | I33: 0
A34: 03-03-01-080- TRANSFERENCIA PARA ENTIDADES EN PROCESO DE LIQUIDACIÓN | B34: 2000000000 | C34: 2000000000 | D34: 2000000000 | E34: 2000000000 | F34: 0 | G34: 100 | H34: 100 | I34: 100
A35: Gastos por Tributos, Multas, Sanciones e Intereses de Mora | B35: 11074000000 | C35: 6660802798 | D35: 6660802798 | E35: 6660802798 | F35: 4413197202 | G35: 60.1481199 | H35: 60.1481199 | I35: 60.1481199
A36: 08-01--- IMPUESTOS | B36: 7737000000 | C36: 6660802798 | D36: 6660802798 | E36: 6660802798 | F36: 1076197202 | G36: 86.09025201 | H36: 86.09025201 | I36: 86.09025201
A37: 08-03--- TASAS Y DERECHOS ADMINISTRATIVOS | B37: 34000000 | C37: 0 | D37: 0 | E37: 0 | F37: 34000000 | G37: 0 | H37: 0 | I37: 0
A38: 08-04-01-- CUOTA DE FISCALIZACIÓN Y AUDITAJE | B38: 3303000000 | C38: 0 | D38: 0 | E38: 0 | F38: 3303000000 | G38: 0 | H38: 0 | I38: 0
A39: Inversión | B39: 1107572680864 | C39: 258464451276 | D39: 5297973994 | E39: 5297973994 | F39: 849108229588 | G39: 23.33611651 | H39: 0.478340978 | I39: 0.478340978
A40: A-Inversión | B40: 1107572680864 | C40: 258464451276 | D40: 5297973994 | E40: 5297973994 | F40: 849108229588 | G40: 23.33611651 | H40: 0.478340978 | I40: 0.478340978
A41: 1702-1100-19-30101B- 3. DERECHO HUMANO A LA ALIMENTACIÓN / B. PROVEER ACCESO A FACTORES PRODUCTIVOS EN FORMA OPORTUNA Y SIMULTÁNEA | B41: 63102000000 | C41: 1655275000 | D41: 0 | E41: 0 | F41: 61446725000 | G41: 2.623173592 | H41: 0 | I41: 0
A42: 1702-1100-20-30101B- 3. DERECHO HUMANO A LA ALIMENTACIÓN / B. PROVEER ACCESO A FACTORES PRODUCTIVOS EN FORMA OPORTUNA Y SIMULTÁNEA | B42: 60000000000 | C42: 2506406237 | D42: 5326666 | E42: 5326666 | F42: 57493593763 | G42: 4.177343728 | H42: 0.008877776667 | I42: 0.008877776667
A43: 1702-1100-21-30101B- 3. DERECHO HUMANO A LA ALIMENTACIÓN / B. PROVEER ACCESO A FACTORES PRODUCTIVOS EN FORMA OPORTUNA Y SIMULTÁNEA | B43: 100000000000 | C43: 1384332862 | D43: 80122896 | E43: 80122896 | F43: 98615667138 | G43: 1.384332862 | H43: 0.080122896 | I43: 0.080122896
A44: 1703-1100-8-30101B- 3. DERECHO HUMANO A LA ALIMENTACIÓN / B. PROVEER ACCESO A FACTORES PRODUCTIVOS EN FORMA OPORTUNA Y SIMULTÁNEA | B44: 480000000000 | C44: 183257462498 | D44: 103298844 | E44: 103298844 | F44: 296742537502 | G44: 38.17863802 | H44: 0.0215205925 | I44: 0.0215205925
A45: 1708-1100-3-40403A- 4. TRANSFORMACIÓN PRODUCTIVA, INTERNACIONALIZACIÓN Y ACCIÓN CLÍMATICA / A. MODELOS DE PRODUCCIÓN SOSTENIBLE Y REGENERATIVOS EN AGRICULTURA Y GANADERÍA | B45: 56898000000 | C45: 1186648410 | D45: 57753579 | E45: 57753579 | F45: 55711351590 | G45: 2.085571391 | H45: 0.1015037066 | I45: 0.1015037066
A46: 1709-1100-6-30101B- 3. DERECHO HUMANO A LA ALIMENTACIÓN / B. PROVEER ACCESO A FACTORES PRODUCTIVOS EN FORMA OPORTUNA Y SIMULTÁNEA | B46: 130000000000 | C46: 8209822428 | D46: 439172542 | E46: 439172542 | F46: 121790177572 | G46: 6.315248022 | H46: 0.3378250323 | I46: 0.3378250323
A47: 1799-1100-9-53105B- 5. CONVERGENCIA REGIONAL / B. ENTIDADES PÚBLICAS TERRITORIALES Y NACIONALES FORTALECIDAS | B47: 33157874072 | C47: 29278114200 | D47: 2805006534 | E47: 2805006534 | F47: 3879759872 | G47: 88.2991296 | H47: 8.459548787 | I47: 8.459548787
A48: 1799-1100-16-30206D- 3. DERECHO HUMANO A LA ALIMENTACIÓN / D. MINISTERIO DE AGRICULTURA Y DESARROLLO RURAL COMO RECTOR DEL DISEÑO DE POLÍTICA | B48: 12000000000 | C48: 3289901453 | D48: 222454459 | E48: 222454459 | F48: 8710098547 | G48: 27.41584544 | H48: 1.853787158 | I48: 1.853787158
A49: 1799-1100-17-30206D- 3. DERECHO HUMANO A LA ALIMENTACIÓN / D. MINISTERIO DE AGRICULTURA Y DESARROLLO RURAL COMO RECTOR DEL DISEÑO DE POLÍTICA | B49: 41714806792 | C49: 14054643246 | D49: 716041312 | E49: 716041312 | F49: 27660163546 | G49: 33.69221705 | H49: 1.71651595 | I49: 1.71651595
A50: 1701-1100-4-51103F- 5. CONVERGENCIA REGIONAL / F. PROVISIÓN Y MEJORAMIENTO DE VIVIENDA RURAL | B50: 40000000000 | C50: 1472155901 | D50: 35140233 | E50: 35140233 | F50: 38527844099 | G50: 3.680389752 | H50: 0.0878505825 | I50: 0.0878505825
A51: 1708-1100-5-40403A- 4. TRANSFORMACIÓN PRODUCTIVA, INTERNACIONALIZACIÓN Y ACCIÓN CLÍMATICA / A. MODELOS DE PRODUCCIÓN SOSTENIBLE Y REGENERATIVOS EN AGRICULTURA Y GANADERÍA | B51: 15000000000 | C51: 1219653067 | D51: 43861392 | E51: 43861392 | F51: 13780346933 | G51: 8.131020447 | H51: 0.29240928 | I51: 0.29240928
A52: 1799-1100-19-30206D- 3. DERECHO HUMANO A LA ALIMENTACIÓN / D. MINISTERIO DE AGRICULTURA Y DESARROLLO RURAL COMO RECTOR DEL DISEÑO DE POLÍTICA | B52: 14000000000 | C52: 7258552640 | D52: 609345536 | E52: 609345536 | F52: 6741447360 | G52: 51.84680457 | H52: 4.352468114 | I52: 4.352468114
A53: 1799-1100-20-30206D- 3. DERECHO HUMANO A LA ALIMENTACIÓN / D. MINISTERIO DE AGRICULTURA Y DESARROLLO RURAL COMO RECTOR DEL DISEÑO DE POLÍTICA | B53: 10000000000 | C53: 3691483334 | D53: 180450001 | E53: 180450001 | F53: 6308516666 | G53: 36.91483334 | H53: 1.80450001 | I53: 1.80450001
A54: 1703-1100-8-30101BZ- 3. DERECHO HUMANO A LA ALIMENTACIÓN / B. PROVEER ACCESO A FACTORES PRODUCTIVOS EN FORMA OPORTUNA Y SIMULTÁNEA / Z. ECI CATATUMBO | B54: 51700000000 | C54: 0 | D54: 0 | E54: 0 | F54: 51700000000 | G54: 0 | H54: 0 | I54: 0
A55: 170106 Unidad de Planificación de Tierras Rurales, Adecuación de Tierras y Usos Agropecuarios-UPRA | B55: 55200868224 | C55: 4.133989146e+10 | D55: 5433511045 | E55: 5423423300 | F55: 1.386097677e+10 | G55: 74.88992979 | H55: 9.843162291 | I55: 9.824887678
A56: Funcionamiento | B56: 14000585000 | C56: 4221256065 | D56: 2719443618 | E56: 2713484588 | F56: 9779328935 | G56: 30.15056917 | H56: 19.42378564 | I56: 19.38122291
A57: Gastos de Personal | B57: 10927436000 | C57: 2177806528 | D57: 2177806528 | E57: 2177806528 | F57: 8749629472 | G57: 19.92971204 | H57: 19.92971204 | I57: 19.92971204
A58: 01-01-01-- SALARIO | B58: 7170502000 | C58: 1466796716 | D58: 1466796716 | E58: 1466796716 | F58: 5703705284 | G58: 20.45598364 | H58: 20.45598364 | I58: 20.45598364
A59: 01-01-02-- CONTRIBUCIONES INHERENTES A LA NÓMINA | B59: 2622333000 | C59: 575291122 | D59: 575291122 | E59: 575291122 | F59: 2047041878 | G59: 21.93814142 | H59: 21.93814142 | I59: 21.93814142
A60: 01-01-03-- REMUNERACIONES NO CONSTITUTIVAS DE FACTOR SALARIAL | B60: 1134601000 | C60: 135718690 | D60: 135718690 | E60: 135718690 | F60: 998882310 | G60: 11.96179891 | H60: 11.96179891 | I60: 11.96179891
A61: Adquisición de Bienes y Servicios | B61: 2919381000 | C61: 2042680587 | D61: 540868140.2 | E61: 534909110.2 | F61: 876700412.9 | G61: 69.96964723 | H61: 18.52680894 | I61: 18.3226893
A62: 02---- ADQUISICIÓN DE BIENES Y SERVICIOS | B62: 2919381000 | C62: 2042680587 | D62: 540868140.2 | E62: 534909110.2 | F62: 876700412.9 | G62: 69.96964723 | H62: 18.52680894 | I62: 18.3226893
A63: Transferencias | B63: 36755000 | C63: 578950 | D63: 578950 | E63: 578950 | F63: 36176050 | G63: 1.575159842 | H63: 1.575159842 | I63: 1.575159842
A64: 03-04-02-012- INCAPACIDADES Y LICENCIAS DE MATERNIDAD Y PATERNIDAD (NO DE PENSIONES) | B64: 36755000 | C64: 578950 | D64: 578950 | E64: 578950 | F64: 36176050 | G64: 1.575159842 | H64: 1.575159842 | I64: 1.575159842
A65: Gastos por Tributos, Multas, Sanciones e Intereses de Mora | B65: 117013000 | C65: 190000 | D65: 190000 | E65: 190000 | F65: 116823000 | G65: 0.1623751207 | H65: 0.1623751207 | I65: 0.1623751207
A66: 08-03--- TASAS Y DERECHOS ADMINISTRATIVOS | B66: 413000 | C66: 190000 | D66: 190000 | E66: 190000 | F66: 223000 | G66: 46.00484262 | H66: 46.00484262 | I66: 46.00484262
A67: 08-04-01-- CUOTA DE FISCALIZACIÓN Y AUDITAJE | B67: 116600000 | C67: 0 | D67: 0 | E67: 0 | F67: 116600000 | G67: 0 | H67: 0 | I67: 0
A68: Inversión | B68: 41200283224 | C68: 3.711863539e+10 | D68: 2714067427 | E68: 2709938712 | F68: 4081647833 | G68: 90.09315589 | H68: 6.587497014 | I68: 6.57747593
A69: A-Inversión | B69: 41200283224 | C69: 3.711863539e+10 | D69: 2714067427 | E69: 2709938712 | F69: 4081647833 | G69: 90.09315589 | H69: 6.587497014 | I69: 6.57747593
A70: 1704-1100-9-30101A- 3. DERECHO HUMANO A LA ALIMENTACIÓN / A. ORDENAR LA PRODUCCIÓN AGROPECUARIA | B70: 15000000000 | C70: 14407339141 | D70: 1031220703 | E70: 1028241988 | F70: 592660859 | G70: 96.04892761 | H70: 6.874804687 | I70: 6.854946587
A71: 1704-1100-10-30206C- 3. DERECHO HUMANO A LA ALIMENTACIÓN / C. PRODUCCIÓN DE INFORMACIÓN PARA MEJORAR LA TOMA DE DECISIONES | B71: 8000000000 | C71: 7467312400 | D71: 348788783 | E71: 348788783 | F71: 532687599.7 | G71: 93.341405 | H71: 4.359859787 | I71: =IFERROR(IF(E71>0,+E71/B71*100,0),0) -> 4.359859787
A72: 1704-1100-11-30206C- 3. DERECHO HUMANO A LA ALIMENTACIÓN / C. PRODUCCIÓN DE INFORMACIÓN PARA MEJORAR LA TOMA DE DECISIONES | B72: 3000000000 | C72: 2988465000 | D72: 244742851 | E72: 244742851 | F72: 11535000 | G72: 99.6155 | H72: 8.158095033 | I72: 8.158095033
A73: 1799-1100-3-53105B- 5. CONVERGENCIA REGIONAL / B. ENTIDADES PÚBLICAS TERRITORIALES Y NACIONALES FORTALECIDAS | B73: 12200283224 | C73: 9315468299 | D73: 857766373 | E73: 856616373 | F73: 2884814925 | G73: 76.35452496 | H73: =IFERROR(IF(D73>0,+D73/B73*100,0),0) -> 7.030708691 | I73: 7.021282681
A74: 1704-1100-11-10303A- 1. ORDENAMIENTO DEL TERRITORIO ALREDEDOR DEL AGUA YJUSTICIA AMBIENTAL / A. ARMONIZACIÓN Y RACIONALIZACIÓN DE LOS INSTRUMENTOS DE ORDENAMIENTO Y PLANIFICACIÓN TERRITORIAL | B74: 3000000000 | C74: 2940050551 | D74: 231548717 | E74: 231548717 | F74: =+B74-C74 -> 59949449 | G74: =IFERROR(IF(C74>0,+C74/B74*100,0),0) -> 98.00168503 | H74: 7.718290567 | I74: 7.718290567
A75: 170200 Instituto Colombiano Agropecuario (ICA) | B75: 490263615733 | C75: 2.100085803e+11 | D75: 6.680274969e+10 | E75: 5.241077013e+10 | F75: 2.802550354e+11 | G75: 42.83584863 | H75: 13.62588362 | I75: 10.69032423
A76: Funcionamiento | B76: 219595508000 | C76: 7.705661517e+10 | D76: 4.223116692e+10 | E76: 3.958858633e+10 | F76: 1.425388928e+11 | G76: 35.09025111 | H76: 19.23134371 | I76: 18.02795817
A77: Gastos de Personal | B77: 141147808000 | C77: 29625858971 | D77: 29614784124 | E77: 29602246924 | F77: 111521949029 | G77: 20.98924481 | H77: 20.98139854 | I77: 20.97251622
A78: 01-01-01-- SALARIO | B78: 91070877000 | C78: 19838262951 | D78: 19838262951 | E78: 19838262951 | F78: 71232614049 | G78: 21.78332262 | H78: 21.78332262 | I78: 21.78332262
A79: 01-01-02-- CONTRIBUCIONES INHERENTES A LA NÓMINA | B79: 34518351000 | C79: 7815304787 | D79: 7815304787 | E79: 7803674487 | F79: 26703046213 | G79: 22.6410143 | H79: 22.6410143 | I79: 22.60732121
A80: 01-01-03-- REMUNERACIONES NO CONSTITUTIVAS DE FACTOR SALARIAL | B80: 13570391000 | C80: 1838932436 | D80: 1838932436 | E80: 1838932436 | F80: 11731458564 | G80: 13.55106449 | H80: 13.55106449 | I80: 13.55106449
A81: 01-02-01-- SALARIO | B81: 1337223000 | C81: 109783782 | D81: 98708935 | E81: 98708935 | F81: 1227439218 | G81: 8.209833513 | H81: 7.381636047 | I81: 7.381636047
A82: 01-02-03-- REMUNERACIONES NO CONSTITUTIVAS DE FACTOR SALARIAL | B82: 19976000 | C82: 335246 | D82: 335246 | E82: 335246 | F82: 19640754 | G82: 1.678243893 | H82: 1.678243893 | I82: 1.678243893
A83: 01-02-02-- CONTRIBUCIONES INHERENTES A LA NÓMINA | B83: 630990000 | C83: 23239769 | D83: 23239769 | E83: 22332869 | F83: 607750231 | G83: 3.683064549 | H83: 3.683064549 | I83: 3.539338024
A84: Adquisición de Bienes y Servicios | B84: 58402409000 | C84: 4.335215484e+10 | D84: 1.066211559e+10 | E84: 8218417918 | F84: 1.505025416e+10 | G84: 74.23007986 | H84: 18.25629417 | I84: 14.07205295
A85: 02---- ADQUISICIÓN DE BIENES Y SERVICIOS | B85: 58402409000 | C85: 4.335215484e+10 | D85: 1.066211559e+10 | E85: 8218417918 | F85: 1.505025416e+10 | G85: 74.23007986 | H85: 18.25629417 | I85: 14.07205295
A86: Transferencias | B86: 14672463000 | C86: 1968612413 | D86: 973722238 | E86: 958717132 | F86: 12703850587 | G86: 13.41705488 | H86: 6.636392527 | I86: 6.534125402
A87: 03-04-02-001- MESADAS PENSIONALES (DE PENSIONES) | B87: 140372000 | C87: 25800774 | D87: 25800774 | E87: 25800774 | F87: 114571226 | G87: 18.38028524 | H87: 18.38028524 | I87: 18.38028524
A88: 03-04-02-002- CUOTAS PARTES PENSIONALES (DE PENSIONES) | B88: 36670000 | C88: 0 | D88: 0 | E88: 0 | F88: 36670000 | G88: 0 | H88: 0 | I88: 0
A89: 03-04-02-022- PROGRAMAS DE VIVIENDA Y OTROS (NO DE PENSIONES) | B89: 2441421000 | C89: 761951434 | D89: 761951434 | E89: 761951434 | F89: 1679469566 | G89: 31.20934218 | H89: 31.20934218 | I89: 31.20934218
A90: 03-02-02-- A ORGANIZACIONES INTERNACIONALES | B90: 1000000000 | C90: 0 | D90: 0 | E90: 0 | F90: 1000000000 | G90: 0 | H90: 0 | I90: 0
A91: 03-10--- SENTENCIAS Y CONCILIACIONES | B91: 9054000000 | C91: 0 | D91: 0 | E91: 0 | F91: 9054000000 | G91: 0 | H91: 0 | I91: 0
A92: 03-03-01-085- FONDO NACIONAL DE EMERGENCIAS SANITARIAS Y FITOSANITARIAS DEL INSTITUTO COLOMBIANO AGROPECUARIO - ICA | B92: 2000000000 | C92: 1180860205 | D92: 185970030 | E92: 170964924 | F92: 819139795 | G92: 59.04301025 | H92: 9.2985015 | I92: 8.5482462
A93: Adquisición de Activos Financieros | B93: 700000000 | C93: 0 | D93: 0 | E93: 0 | F93: 700000000 | G93: 0 | H93: 0 | I93: 0
A94: 06-01-04-011- PRÉSTAMOS DE CONSUMO | B94: 700000000 | C94: 0 | D94: 0 | E94: 0 | F94: 700000000 | G94: 0 | H94: 0 | I94: 0
A95: Gastos por Tributos, Multas, Sanciones e Intereses de Mora | B95: 4672828000 | C95: 2109988949 | D95: 980544963 | E95: 809204360 | F95: 2562839051 | G95: 45.15443216 | H95: 20.98397294 | I95: 17.31722974
A96: 08-01--- IMPUESTOS | B96: 3572828000 | C96: 2109988949 | D96: 980544963 | E96: 809204360 | F96: 1462839051 | G96: 59.05654985 | H96: 27.44450511 | I96: 22.64884736
A97: 08-04-01-- CUOTA DE FISCALIZACIÓN Y AUDITAJE | B97: 1100000000 | C97: 0 | D97: 0 | E97: 0 | F97: 1100000000 | G97: 0 | H97: 0 | I97: 0
A98: Inversión | B98: 270668107733 | C98: 1.329519652e+11 | D98: 2.457158277e+10 | E98: 1.282218379e+10 | F98: 1.377161426e+11 | G98: 49.11992265 | H98: 9.078122641 | I98: 4.7372348
A99: A-Inversión | B99: 270668107733 | C99: 1.329519652e+11 | D99: 2.457158277e+10 | E99: 1.282218379e+10 | F99: 1.377161426e+11 | G99: 49.11992265 | H99: 9.078122641 | I99: 4.7372348
A100: 1799-1100-3-53105B- 5. CONVERGENCIA REGIONAL / B. ENTIDADES PÚBLICAS TERRITORIALES Y NACIONALES FORTALECIDAS | B100: 68133621547 | C100: 22710515169 | D100: 3342128161 | E100: 1764817058 | F100: 45423106378 | G100: 33.33231766 | H100: 4.905255415 | I100: 2.590229343
A101: 1707-1100-6-30204A- 3. DERECHO HUMANO A LA ALIMENTACIÓN / A. POLÍTICA DE INOCUIDAD DE LOS ALIMENTOS PARA EL PAÍS | B101: 101267243093 | C101: 53486342313 | D101: 10351661178 | E101: 5364738894 | F101: 47780900780 | G101: 52.81702225 | H101: 10.22212204 | I101: 5.297605356
A102: 1707-1100-7-30204A- 3. DERECHO HUMANO A LA ALIMENTACIÓN / A. POLÍTICA DE INOCUIDAD DE LOS ALIMENTOS PARA EL PAÍS | B102: 101267243093 | C102: 5.675510768e+10 | D102: 1.087779343e+10 | E102: 5692627841 | F102: 4.451213541e+10 | G102: 56.04488278 | H102: 10.74167036 | I102: 5.62139115
A103: 171500 Autoridad Nacional de Acuicultura y Pesca - AUNAP | B103: 97937013996 | C103: 2.600960933e+10 | D103: 5242500789 | E103: 5242500789 | F103: 7.192740467e+10 | G103: 26.55748656 | H103: 5.352931006 | I103: 5.352931006
A104: Funcionamiento | B104: 24417000000 | C104: 7671113488 | D104: 4016663617 | E104: 4016663617 | F104: 1.674588651e+10 | G104: 31.41710074 | H104: 16.45027488 | I104: 16.45027488
A105: Gastos de Personal | B105: 15487800000 | C105: 2843816685 | D105: 2843816685 | E105: 2843816685 | F105: 12643983315 | G105: 18.36165682 | H105: 18.36165682 | I105: 18.36165682
A106: 01-01-01-- SALARIO | B106: 10359806000 | C106: 1943732882 | D106: 1943732882 | E106: 1943732882 | F106: 8416073118 | G106: 18.76225174 | H106: 18.76225174 | I106: 18.76225174
A107: 01-01-02-- CONTRIBUCIONES INHERENTES A LA NÓMINA | B107: 3785163000 | C107: 741236141 | D107: 741236141 | E107: 741236141 | F107: 3043926859 | G107: 19.58267427 | H107: 19.58267427 | I107: 19.58267427
A108: 01-01-03-- REMUNERACIONES NO CONSTITUTIVAS DE FACTOR SALARIAL | B108: 1342831000 | C108: 158847662 | D108: 158847662 | E108: 158847662 | F108: 1183983338 | G108: 11.82931151 | H108: 11.82931151 | I108: 11.82931151
A109: Adquisición de Bienes y Servicios | B109: 8416484000 | C109: 4814055435 | D109: 1159605564 | E109: 1159605564 | F109: 3602428565 | G109: 57.19793961 | H109: 13.77779087 | I109: 13.77779087
A110: 02---- ADQUISICIÓN DE BIENES Y SERVICIOS | B110: 8416484000 | C110: 4814055435 | D110: 1159605564 | E110: 1159605564 | F110: 3602428565 | G110: 57.19793961 | H110: 13.77779087 | I110: 13.77779087
A111: Transferencias | B111: 214198000 | C111: 7746038 | D111: 7746038 | E111: 7746038 | F111: 206451962 | G111: 3.616298005 | H111: 3.616298005 | I111: 3.616298005
A112: 03-04-02-012- INCAPACIDADES Y LICENCIAS DE MATERNIDAD Y PATERNIDAD (NO DE PENSIONES) | B112: 64198000 | C112: 7746038 | D112: 7746038 | E112: 7746038 | F112: 56451962 | G112: 12.06585563 | H112: 12.06585563 | I112: 12.06585563
A113: 03-10--- SENTENCIAS Y CONCILIACIONES | B113: 150000000 | C113: 0 | D113: 0 | E113: 0 | F113: 150000000 | G113: 0 | H113: 0 | I113: 0
A114: Gastos por Tributos, Multas, Sanciones e Intereses de Mora | B114: 298518000 | C114: 5495330 | D114: 5495330 | E114: 5495330 | F114: 293022670 | G114: 1.840870567 | H114: 1.840870567 | I114: 1.840870567
A115: 08-01--- IMPUESTOS | B115: 61000000 | C115: 3503684 | D115: 3503684 | E115: 3503684 | F115: 57496316 | G115: 5.743744262 | H115: 5.743744262 | I115: 5.743744262
A116: 08-03--- TASAS Y DERECHOS ADMINISTRATIVOS | B116: 4518000 | C116: 1991646 | D116: 1991646 | E116: 1991646 | F116: 2526354 | G116: 44.08247012 | H116: 44.08247012 | I116: 44.08247012
A117: 08-04-01-- CUOTA DE FISCALIZACIÓN Y AUDITAJE | B117: 233000000 | C117: 0 | D117: 0 | E117: 0 | F117: 233000000 | G117: 0 | H117: 0 | I117: 0
A118: Inversión | B118: 73520013996 | C118: 18338495839 | D118: 1225837172 | E118: 1225837172 | F118: 55181518157 | G118: 24.94354237 | H118: 1.667351658 | I118: 1.667351658
A119: A-Inversión | B119: 73520013996 | C119: 18338495839 | D119: 1225837172 | E119: 1225837172 | F119: 55181518157 | G119: 24.94354237 | H119: 1.667351658 | I119: 1.667351658
A120: 1799-1100-3-53105B- 5. CONVERGENCIA REGIONAL / B. ENTIDADES PÚBLICAS TERRITORIALES Y NACIONALES FORTALECIDAS | B120: 4483717900 | C120: 1889729766 | D120: 360764702 | E120: 360764702 | F120: 2593988134 | G120: 42.14649111 | H120: 8.046106157 | I120: 8.046106157
A121: 1707-1100-6-30101B- 3. DERECHO HUMANO A LA ALIMENTACIÓN / B. PROVEER ACCESO A FACTORES PRODUCTIVOS EN FORMA OPORTUNA Y SIMULTÁNEA | B121: 3466308700 | C121: 1173013333 | D121: 11305000 | E121: 11305000 | F121: 2293295367 | G121: 33.84041742 | H121: 0.3261394463 | I121: 0.3261394463
A122: 1707-1100-7-30101B- 3. DERECHO HUMANO A LA ALIMENTACIÓN / B. PROVEER ACCESO A FACTORES PRODUCTIVOS EN FORMA OPORTUNA Y SIMULTÁNEA | B122: 54383838596 | C122: 9328991801 | D122: 782379865 | E122: 782379865 | F122: 45054846795 | G122: 17.15397817 | H122: 1.438625675 | I122: 1.438625675
A123: 1708-1100-7-30101B- 3. DERECHO HUMANO A LA ALIMENTACIÓN / B. PROVEER ACCESO A FACTORES PRODUCTIVOS EN FORMA OPORTUNA Y SIMULTÁNEA | B123: 4266341700 | C123: 0 | D123: 0 | E123: 0 | F123: 4266341700 | G123: 0 | H123: 0 | I123: 0
A124: 1708-1100-6-30206C- 3. DERECHO HUMANO A LA ALIMENTACIÓN / C. PRODUCCIÓN DE INFORMACIÓN PARA MEJORAR LA TOMA DE DECISIONES - [PREVIO CONCEPTO DNP] | B124: 6919807100 | C124: 5946760939 | D124: 71387605 | E124: 71387605 | F124: 973046161 | G124: 85.93824731 | H124: 1.031641547 | I124: 1.031641547
A125: 171600 UAE Gestión de Restitución de Tierras Despojadas | B125: 536029566664 | C125: 2.16205783e+11 | D125: 63030022633 | E125: 57522476091 | F125: 3.198237837e+11 | G125: 40.33467489 | H125: 11.75868395 | I125: 10.73121329
A126: Funcionamiento | B126: 80608731000 | C126: 2.509903135e+10 | D126: 14401901442 | E126: 14365394590 | F126: 5.550969965e+10 | G126: 31.1368645 | H126: 17.86642869 | I126: 17.82113973
A127: Gastos de Personal | B127: 57297360000 | C127: 11954679847 | D127: 11954679847 | E127: 11918172995 | F127: 45342680153 | G127: 20.8642769 | H127: 20.8642769 | I127: 20.80056218
A128: 01-01-01-- SALARIO | B128: 38347846000 | C128: 7813643566 | D128: 7813643566 | E128: 7813643566 | F128: 30534202434 | G128: 20.37570393 | H128: 20.37570393 | I128: 20.37570393
A129: 01-01-02-- CONTRIBUCIONES INHERENTES A LA NÓMINA | B129: 13860077000 | C129: 3684455791 | D129: 3684455791 | E129: 3647948939 | F129: 10175621209 | G129: 26.58322743 | H129: 26.58322743 | I129: 26.31983169
A130: 01-01-03-- REMUNERACIONES NO CONSTITUTIVAS DE FACTOR SALARIAL | B130: 5089437000 | C130: 456580490 | D130: 456580490 | E130: 456580490 | F130: 4632856510 | G130: 8.97113944 | H130: 8.97113944 | I130: 8.97113944
A131: Adquisición de Bienes y Servicios | B131: 21891696000 | C131: 1.306096915e+10 | D131: 2363839245 | E131: 2363839245 | F131: 8830726851 | G131: 59.66175096 | H131: 10.79788083 | I131: 10.79788083
A132: 02---- ADQUISICIÓN DE BIENES Y SERVICIOS | B132: 21891696000 | C132: 1.306096915e+10 | D132: 2363839245 | E132: 2363839245 | F132: 8830726851 | G132: 59.66175096 | H132: 10.79788083 | I132: 10.79788083
A133: Transferencias | B133: 591000000 | C133: 83382350 | D133: 83382350 | E133: 83382350 | F133: 507617650 | G133: 14.10868866 | H133: 14.10868866 | I133: 14.10868866
A134: 03-04-02-012- INCAPACIDADES Y LICENCIAS DE MATERNIDAD Y PATERNIDAD (NO DE PENSIONES) | B134: 195000000 | C134: 83382350 | D134: 83382350 | E134: 83382350 | F134: 111617650 | G134: 42.76017949 | H134: 42.76017949 | I134: 42.76017949
A135: 03-10--- SENTENCIAS Y CONCILIACIONES | B135: 396000000 | C135: 0 | D135: 0 | E135: 0 | F135: 396000000 | G135: 0 | H135: 0 | I135: =IFERROR(IF(E135>0,+E135/B135*100,0),0) -> 0
A136: Gastos por Tributos, Multas, Sanciones e Intereses de Mora | B136: 828675000 | C136: 0 | D136: 0 | E136: 0 | F136: 828675000 | G136: 0 | H136: 0 | I136: 0
A137: 08-01--- IMPUESTOS | B137: 10300000 | C137: 0 | D137: 0 | E137: 0 | F137: 10300000 | G137: 0 | H137: =IFERROR(IF(D137>0,+D137/B137*100,0),0) -> 0 | I137: 0
A138: 08-04-01-- CUOTA DE FISCALIZACIÓN Y AUDITAJE | B138: 818375000 | C138: 0 | D138: 0 | E138: 0 | F138: =+B138-C138 -> 818375000 | G138: =IFERROR(IF(C138>0,+C138/B138*100,0),0) -> 0 | H138: 0 | I138: 0
A139: Inversión | B139: 455420835664 | C139: 1.911067517e+11 | D139: 48628121191 | E139: 43157081501 | F139: 2.64314084e+11 | G139: 41.96267204 | H139: 10.67762328 | I139: 9.476308092
A140: A-Inversión | B140: 455420835664 | C140: 1.911067517e+11 | D140: 48628121191 | E140: 43157081501 | F140: 2.64314084e+11 | G140: 41.96267204 | H140: 10.67762328 | I140: 9.476308092
A141: 1705-1100-6-10106B- 1. ORDENAMIENTO DEL TERRITORIO ALREDEDOR DEL AGUA Y JUSTICIA AMBIENTAL / B. COORDINACIÓN INSTITUCIONAL PARA OPTIMIZAR LA FORMALIZACIÓN | B141: 165972546289 | C141: 3.732836069e+10 | D141: 1.413702669e+10 | E141: 1.268580729e+10 | F141: 1.286441856e+11 | G141: 22.49068387 | H141: 8.517689826 | I141: 7.643316667
A142: 1705-1100-7-10106A- 1. ORDENAMIENTO DEL TERRITORIO ALREDEDOR DEL AGUA Y JUSTICIA AMBIENTAL / A. ACCESO Y FORMALIZACIÓN DE LA PROPIEDAD | B142: 548400710 | C142: 0 | D142: 0 | E142: 0 | F142: 548400710 | G142: 0 | H142: 0 | I142: 0
A143: 1705-1100-8-10106A- 1. ORDENAMIENTO DEL TERRITORIO ALREDEDOR DEL AGUA Y JUSTICIA AMBIENTAL / A. ACCESO Y FORMALIZACIÓN DE LA PROPIEDAD | B143: 132208667815 | C143: 35541581820 | D143: 3542992983 | E143: 2930866815 | F143: 96667085995 | G143: 26.88294376 | H143: 2.679849243 | I143: 2.216849215
A144: 1705-1100-9-10106A- 1. ORDENAMIENTO DEL TERRITORIO ALREDEDOR DEL AGUA Y JUSTICIA AMBIENTAL / A. ACCESO Y FORMALIZACIÓN DE LA PROPIEDAD | B144: 115908898130 | C144: 8.436955748e+10 | D144: 2.244951667e+10 | E144: 2.069406516e+10 | F144: 3.153934065e+10 | G144: 72.7895432 | H144: 19.36824267 | I144: 17.85373297
A145: 1799-1100-1-10106A- 1. ORDENAMIENTO DEL TERRITORIO ALREDEDOR DEL AGUA Y JUSTICIA AMBIENTAL / A. ACCESO Y FORMALIZACIÓN DE LA PROPIEDAD | B145: 40782322720 | C145: 3.386725167e+10 | D145: 8498584848 | E145: 6846342228 | F145: 6915071048 | G145: 83.04394996 | H145: 20.83889362 | I145: 16.78752403
A146: 171700 Agencia Nacional de Tierras - ANT | B146: 1718183524174 | C146: 3.636732775e+11 | D146: 4.301957401e+10 | E146: 4.3011801e+10 | F146: 1.354510247e+12 | G146: 21.16614858 | H146: 2.503782245 | I146: 2.503329848
A147: Funcionamiento | B147: 82539448000 | C147: 2.576888103e+10 | D147: 1.144762005e+10 | E147: 1.144358484e+10 | F147: 5.677056697e+10 | G147: 31.22007919 | H147: 13.8692714 | I147: 13.86438257
A148: Gastos de Personal | B148: 36986271000 | C148: 6999178519 | D148: 6998682107 | E148: 6998682107 | F148: 29987092481 | G148: 18.92372042 | H148: 18.92237827 | I148: 18.92237827
A149: 01-01-01-- SALARIO | B149: 24671812000 | C149: 4602887900 | D149: 4602391488 | E149: 4602391488 | F149: 20068924100 | G149: 18.65646471 | H149: 18.65445265 | I149: 18.65445265
A150: 01-01-02-- CONTRIBUCIONES INHERENTES A LA NÓMINA | B150: 9015066000 | C150: 1873492208 | D150: 1873492208 | E150: 1873492208 | F150: 7141573792 | G150: 20.78179137 | H150: 20.78179137 | I150: 20.78179137
A151: 01-01-03-- REMUNERACIONES NO CONSTITUTIVAS DE FACTOR SALARIAL | B151: 3299393000 | C151: 522798411 | D151: 522798411 | E151: 522798411 | F151: 2776594589 | G151: 15.84529066 | H151: 15.84529066 | I151: 15.84529066
A152: Adquisición de Bienes y Servicios | B152: 38496161000 | C152: 1.874647535e+10 | D152: 4429753213 | E152: 4425718003 | F152: 1.974968565e+10 | G152: 48.69699954 | H152: 11.50699991 | I152: 11.4965178
A153: 02---- ADQUISICIÓN DE BIENES Y SERVICIOS | B153: 38496161000 | C153: 1.874647535e+10 | D153: 4429753213 | E153: 4425718003 | F153: 1.974968565e+10 | G153: 48.69699954 | H153: 11.50699991 | I153: 11.4965178
A154: Transferencias | B154: 4215672000 | C154: 23227163 | D154: 19184733 | E154: 19184733 | F154: 4192444837 | G154: 0.5509717786 | H154: 0.4550812539 | I154: 0.4550812539
A155: 03-04-02-012- INCAPACIDADES Y LICENCIAS DE MATERNIDAD Y PATERNIDAD (NO DE PENSIONES) | B155: 143556000 | C155: 23227163 | D155: 19184733 | E155: 19184733 | F155: 120328837 | G155: 16.17986221 | H155: 13.36393672 | I155: 13.36393672
A156: 03-10--- SENTENCIAS Y CONCILIACIONES | B156: 4072116000 | C156: 0 | D156: 0 | E156: 0 | F156: 4072116000 | G156: 0 | H156: 0 | I156: 0
A157: Gastos por Tributos, Multas, Sanciones e Intereses de Mora | B157: 2841344000 | C157: 0 | D157: 0 | E157: 0 | F157: 2841344000 | G157: 0 | H157: 0 | I157: 0
A158: 08-01--- IMPUESTOS | B158: 200344000 | C158: 0 | D158: 0 | E158: 0 | F158: 200344000 | G158: 0 | H158: 0 | I158: 0
A159: 08-04-01-- CUOTA DE FISCALIZACIÓN Y AUDITAJE | B159: 2641000000 | C159: 0 | D159: 0 | E159: 0 | F159: 2641000000 | G159: 0 | H159: 0 | I159: 0
A160: Inversión | B160: 1635644076174 | C160: 3.379043965e+11 | D160: 3.157195396e+10 | E160: 3.156821616e+10 | F160: 1.29773968e+12 | G160: 20.65879744 | H160: 1.930245976 | I160: 1.930017454
A161: A-Inversión | B161: 1635644076174 | C161: 3.379043965e+11 | D161: 3.157195396e+10 | E161: 3.156821616e+10 | F161: 1.29773968e+12 | G161: 20.65879744 | H161: 1.930245976 | I161: 1.930017454
A162: 1799-1100-9-53105B- 5. CONVERGENCIA REGIONAL / B. ENTIDADES PÚBLICAS TERRITORIALES Y NACIONALES FORTALECIDAS | B162: 13297004342 | C162: 2691870786 | D162: 166978579 | E162: 166978579 | F162: 10605133556 | G162: 20.24418972 | H162: 1.255760882 | I162: 1.255760882
A163: 1704-1100-19-10106A- 1. ORDENAMIENTO DEL TERRITORIO ALREDEDOR DEL AGUA Y JUSTICIA AMBIENTAL / A. ACCESO Y FORMALIZACIÓN DE LA PROPIEDAD | B163: 234474550204 | C163: 13378416918 | D163: 860506141 | E163: 860506141 | F163: 221096133286 | G163: 5.705701069 | H163: 0.3669934073 | I163: 0.3669934073
A164: 1704-1100-20-10106A- 1. ORDENAMIENTO DEL TERRITORIO ALREDEDOR DEL AGUA Y JUSTICIA AMBIENTAL / A. ACCESO Y FORMALIZACIÓN DE LA PROPIEDAD | B164: 234474550204 | C164: 9593679392 | D164: 675784333 | E164: 675784333 | F164: 224880870812 | G164: 4.091565325 | H164: 0.2882122313 | I164: 0.2882122313
A165: 1704-1100-21-10106A- 1. ORDENAMIENTO DEL TERRITORIO ALREDEDOR DEL AGUA Y JUSTICIA AMBIENTAL / A. ACCESO Y FORMALIZACIÓN DE LA PROPIEDAD | B165: 21474642609 | C165: 7836710478 | D165: 1156040427 | E165: 1156040427 | F165: 13637932131 | G165: 36.49285635 | H165: 5.383281333 | I165: 5.383281333
A166: 1704-1100-21-53105B- 5. CONVERGENCIA REGIONAL / B. ENTIDADES PÚBLICAS TERRITORIALES Y NACIONALES FORTALECIDAS | B166: 22880803075 | C166: 12392082055 | D166: 0 | E166: 0 | F166: 10488721020 | G166: 54.15929683 | H166: 0 | I166: 0
A167: 1704-1100-22-10106A- 1. ORDENAMIENTO DEL TERRITORIO ALREDEDOR DEL AGUA Y JUSTICIA AMBIENTAL / A. ACCESO Y FORMALIZACIÓN DE LA PROPIEDAD | B167: 80504875079 | C167: 37725724362 | D167: 3375874167 | E167: 3375874167 | F167: 42779150717 | G167: 46.86141594 | H167: 4.193378555 | I167: 4.193378555
A168: 1704-1100-23-10106A- 1. ORDENAMIENTO DEL TERRITORIO ALREDEDOR DEL AGUA Y JUSTICIA AMBIENTAL / A. ACCESO Y FORMALIZACIÓN DE LA PROPIEDAD | B168: 89207995636 | C168: 39897427335 | D168: 5053328443 | E168: 5050119457 | F168: 49310568301 | G168: 44.72404861 | H168: 5.664658652 | I168: 5.661061456
A169: 1704-1100-25-10106A- 1. ORDENAMIENTO DEL TERRITORIO ALREDEDOR DEL AGUA Y JUSTICIA AMBIENTAL / A. ACCESO Y FORMALIZACIÓN DE LA PROPIEDAD | B169: 844912995955 | C169: 1.993305543e+11 | D169: 1.741536182e+10 | E169: 1.7414833e+10 | F169: 6.455824416e+11 | G169: 23.59184381 | H169: 2.061201793 | I169: 2.061139204
A170: 1799-1100-10-53105B- 5. CONVERGENCIA REGIONAL / B. ENTIDADES PÚBLICAS TERRITORIALES Y NACIONALES FORTALECIDAS | B170: 29416659070 | C170: 15057930870 | D170: 2868080051 | E170: 2868080051 | F170: 14358728200 | G170: 51.18844677 | H170: 9.749849717 | I170: 9.749849717
A171: 1704-1100-19-10106AZ- 1. ORDENAMIENTO DEL TERRITORIO ALREDEDOR DEL AGUA Y JUSTICIA AMBIENTAL / A. ACCESO Y FORMALIZACIÓN DE LA PROPIEDAD / Z. ECI CATATUMBO | B171: 15000000000 | C171: 0 | D171: 0 | E171: 0 | F171: 15000000000 | G171: 0 | H171: 0 | I171: 0
A172: 1704-1100-23-10106AZ- 1. ORDENAMIENTO DEL TERRITORIO ALREDEDOR DEL AGUA Y JUSTICIA AMBIENTAL / A. ACCESO Y FORMALIZACIÓN DE LA PROPIEDAD / Z. ECI CATATUMBO | B172: 15000000000 | C172: 0 | D172: 0 | E172: 0 | F172: 15000000000 | G172: 0 | H172: 0 | I172: 0
A173: 1704-1100-25-10106AZ- 1. ORDENAMIENTO DEL TERRITORIO ALREDEDOR DEL AGUA Y JUSTICIA AMBIENTAL / A. ACCESO Y FORMALIZACIÓN DE LA PROPIEDAD / Z. ECI CATATUMBO | B173: 35000000000 | C173: 0 | D173: 0 | E173: 0 | F173: 35000000000 | G173: 0 | H173: 0 | I173: 0
A174: 171800 Agencia de Desarrollo Rural - ADR | B174: 761700198345 | C174: 6.997025226e+10 | D174: 1.916994264e+10 | E174: 1.83354557e+10 | F174: 6.917299461e+11 | G174: 9.186061972 | H174: 2.516730688 | I174: 2.407174862
A175: Funcionamiento | B175: 57526196000 | C175: 1.806146714e+10 | D175: 8385041028 | E175: 8372548104 | F175: 3.946472886e+10 | G175: 31.39694329 | H175: 14.57603946 | I175: 14.55432253
A176: Gastos de Personal | B176: 21987041000 | C176: 3558197736 | D176: 3554345532 | E176: 3550825629 | F176: 18428843264 | G176: 16.18315869 | H176: 16.16563835 | I176: 16.14962936
A177: 01-01-01-- SALARIO | B177: 15110970000 | C177: 2283554344 | D177: 2283554344 | E177: 2282491090 | F177: 12827415656 | G177: 15.11189781 | H177: 15.11189781 | I177: 15.1048615
A178: 01-01-02-- CONTRIBUCIONES INHERENTES A LA NÓMINA | B178: 1199287000 | C178: 868263243 | D178: 864411039 | E178: 864411039 | F178: 331023757 | G178: 72.3982869 | H178: 72.07707905 | I178: 72.07707905
A179: 01-01-03-- REMUNERACIONES NO CONSTITUTIVAS DE FACTOR SALARIAL | B179: 5676784000 | C179: 406380149 | D179: 406380149 | E179: 403923500 | F179: 5270403851 | G179: 7.158633286 | H179: 7.158633286 | I179: 7.115357921
A180: Adquisición de Bienes y Servicios | B180: 29292596000 | C180: 1.33453826e+10 | D180: 3672808699 | E180: 3663835678 | F180: 1.59472134e+10 | G180: 45.55889346 | H180: 12.53835167 | I180: 12.50771928
A181: 02---- ADQUISICIÓN DE BIENES Y SERVICIOS | B181: 29292596000 | C181: 1.33453826e+10 | D181: 3672808699 | E181: 3663835678 | F181: 1.59472134e+10 | G181: 45.55889346 | H181: 12.53835167 | I181: 12.50771928
A182: Transferencias | B182: 3996559000 | C182: 4489844 | D182: 4489844 | E182: 4489844 | F182: 3992069156 | G182: 0.1123427428 | H182: 0.1123427428 | I182: 0.1123427428
A183: 03-03-01-999- OTRAS TRANSFERENCIAS - DISTRIBUCIÓN PREVIO CONCEPTO DGPPN | B183: 261798000 | C183: 0 | D183: 0 | E183: 0 | F183: 261798000 | G183: 0 | H183: 0 | I183: 0
A184: 03-04-02-012- INCAPACIDADES Y LICENCIAS DE MATERNIDAD Y PATERNIDAD (NO DE PENSIONES) | B184: 145545000 | C184: 4489844 | D184: 4489844 | E184: 4489844 | F184: 141055156 | G184: 3.084849359 | H184: 3.084849359 | I184: 3.084849359
A185: 03-10--- SENTENCIAS Y CONCILIACIONES | B185: 3589216000 | C185: 0 | D185: 0 | E185: 0 | F185: 3589216000 | G185: 0 | H185: 0 | I185: 0
A186: Gastos por Tributos, Multas, Sanciones e Intereses de Mora | B186: 2250000000 | C186: 1153396953 | D186: 1153396953 | E186: 1153396953 | F186: 1096603047 | G186: 51.2620868 | H186: 51.2620868 | I186: 51.2620868
A187: 08-01--- IMPUESTOS | B187: 250000000 | C187: 85609155 | D187: 85609155 | E187: 85609155 | F187: 164390845 | G187: 34.243662 | H187: 34.243662 | I187: 34.243662
A188: 08-04-01-- CUOTA DE FISCALIZACIÓN Y AUDITAJE | B188: 2000000000 | C188: 1067787798 | D188: 1067787798 | E188: 1067787798 | F188: 932212202 | G188: 53.3893899 | H188: 53.3893899 | I188: 53.3893899
A189: Inversión | B189: 704174002345 | C189: 5.190878512e+10 | D189: 1.078490161e+10 | E189: 9962907595 | F189: 6.522652172e+11 | G189: 7.371584999 | H189: 1.531567706 | I189: 1.414836044
A190: A-Inversión | B190: 704174002345 | C190: 5.190878512e+10 | D190: 1.078490161e+10 | E190: 9962907595 | F190: 6.522652172e+11 | G190: 7.371584999 | H190: 1.531567706 | I190: 1.414836044
A191: 1709-1100-6-30101B- 3. DERECHO HUMANO A LA ALIMENTACIÓN / B. PROVEER ACCESO A FACTORES PRODUCTIVOS EN FORMA OPORTUNA Y SIMULTÁNEA | B191: 36908650863 | C191: 9016804107 | D191: 937674934 | E191: 919201428 | F191: 27891846756 | G191: 24.43005609 | H191: 2.540528879 | I191: 2.490476911
A192: 1702-1100-14-30101B- 3. DERECHO HUMANO A LA ALIMENTACIÓN / B. PROVEER ACCESO A FACTORES PRODUCTIVOS EN FORMA OPORTUNA Y SIMULTÁNEA | B192: 347401848886 | C192: 1.596561318e+10 | D192: 2528587022 | E192: 2400674732 | F192: 3.314362357e+11 | G192: 4.595719115 | H192: 0.727856524 | I192: 0.6910368322
A193: 1708-1100-5-30101C- 3. DERECHO HUMANO A LA ALIMENTACIÓN / C. SISTEMAS TERRITORIALES DE INNOVACIÓN, FORTALECIMIENTO DEL SISTEMA NACIONAL DE INNOVACIÓN AGROPECUARIA (SNIA) Y MISIÓN DE INVESTIGACIÓN E INNOVACIÓN | B193: 44396720780 | C193: 3039549485 | D193: 472865621 | E193: 467499944 | F193: 41357171295 | G193: 6.846337819 | H193: 1.065091324 | I193: 1.053005573
A194: 1708-1100-5-30101D- 3. DERECHO HUMANO A LA ALIMENTACIÓN / D. EXTENSIÓN TECNOLÓGICA AGROINDUSTRIA | B194: 34745794650 | C194: 0 | D194: 0 | E194: 0 | F194: 34745794650 | G194: 0 | H194: 0 | I194: 0
A195: 1709-1100-7-30101B- 3. DERECHO HUMANO A LA ALIMENTACIÓN / B. PROVEER ACCESO A FACTORES PRODUCTIVOS EN FORMA OPORTUNA Y SIMULTÁNEA | B195: 116422783387 | C195: 5910367886 | D195: 809242811 | E195: 743946481 | F195: 1.105124155e+11 | G195: 5.076641972 | H195: 0.6950897303 | I195: 0.6390042046
A196: 1799-1100-14-53105B- 5. CONVERGENCIA REGIONAL / B. ENTIDADES PÚBLICAS TERRITORIALES Y NACIONALES FORTALECIDAS | B196: 162970947 | C196: 162970947 | D196: 4878486.49 | E196: 4878486.49 | F196: 0 | G196: 100 | H196: 2.993470051 | I196: 2.993470051
A197: 1799-1100-15-53105B- 5. CONVERGENCIA REGIONAL / B. ENTIDADES PÚBLICAS TERRITORIALES Y NACIONALES FORTALECIDAS | B197: 6658969478 | C197: 1929929272 | D197: 412239409.5 | E197: 412239409.5 | F197: 4729040206 | G197: 28.98240154 | H197: 6.190738835 | I197: 6.190738835
A198: 1799-1100-16-53105B- 5. CONVERGENCIA REGIONAL / B. ENTIDADES PÚBLICAS TERRITORIALES Y NACIONALES FORTALECIDAS | B198: 10237078950 | C198: 551236887 | D198: 106793936 | E198: 105965503 | F198: 9685842063 | G198: 5.38470876 | H198: 1.043207115 | I198: 1.035114641
A199: 1702-1100-16-30101B- 3. DERECHO HUMANO A LA ALIMENTACIÓN / B. PROVEER ACCESO A FACTORES PRODUCTIVOS EN FORMA OPORTUNA Y SIMULTÁNEA | B199: 15339184404 | C199: 5009573622 | D199: 282941944 | E199: 259016897 | F199: 1.032961078e+10 | G199: 32.65867004 | H199: 1.844569676 | I199: =IFERROR(IF(E199>0,+E199/B199*100,0),0) -> 1.688596279
A200: 1702-1100-17-30201A- 3. DERECHO HUMANO A LA ALIMENTACIÓN / A. DESARROLLO DE REDES AGROLOGÍSTICAS | B200: 44400000000 | C200: 10322739739 | D200: 5229677450 | E200: 4649484714 | F200: 34077260261 | G200: 23.24941383 | H200: 11.77855282 | I200: 10.47181242
... 4678 more rows

Sheet CUA8
A1: CUADRO No. 8
A2: Rezago presupuestal del Presupuesto General de la Nación en 2024
A3: =+'CUA1'!A3:L3 -> Acumulada a marzo 2025
A4: Miles de millones de pesos corrientes
B5: Concepto | C5: Rezago | D5: Pago | E5: Rezago por pagar | F5: Ejecución %
F6: Pago/Rezago
C7: (1) | D7: (2) | E7: (3)=(1-2) | F7: (4)=(2/1)
A8: I. | B8: FUNCIONAMIENTO | C8: 18471.44667 | D8: 10258.78051 | E8: 8212.666164 | F8: 55.53858715
B9: Gastos de Personal | C9: 569.8070776 | D9: 517.6164252 | E9: 52.1906523 | F9: 90.84064513
B10: Adquisición de Bienes y Servicios | C10: 4364.368992 | D10: 3055.731887 | E10: 1308.637104 | F10: 70.01543392
B11: Transferencias | C11: 13193.18011 | D11: 6439.041418 | E11: 6754.138697 | F11: 48.80583273
B12: Gastos de Comercialización y Producción | C12: 320.5693044 | D12: 225.2817854 | E12: 95.28751908 | F12: 70.27553239
B13: Adquisición de Activos Financieros | C13: 5.022183456 | D13: 3.623514823 | E13: 1.398668633 | F13: 72.15018836
B14: Disminución de Pasivos | C14: 10.93833312 | D14: 10.26603271 | E14: 0.672300407 | F14: 93.85372159
B15: Gastos por Tributos, Multas, Sanciones e Intereses de Mora | C15: 7.560667585 | D15: 7.219445143 | E15: 0.3412224418 | F15: 95.48687417
A16: II. | B16: SERVICIO DE LA DEUDA | C16: 7773.360726 | D16: 3455.668793 | E16: 4317.691933 | F16: 44.45527378
B17: Servicio de la Deuda Pública Externa | C17: 4028.158345 | D17: 3432.387113 | E17: 595.771232 | F17: 85.20983584
B18: Principal | C18: 1770.995202 | D18: 1367.061095 | E18: 403.9341075 | F18: 77.19168821
B19: Intereses | C19: 2245.312495 | D19: 2063.128626 | E19: 182.1838691 | F19: 91.88603504
B20: Comisiones y Otros Gastos | C20: 11.85064825 | D20: 2.19739286 | E20: 9.653255387 | F20: 18.54238531
B21: Servicio de la Deuda Pública Interna | C21: 3745.202381 | D21: 23.28167934 | E21: 3721.920701 | F21: 0.6216400869
B22: Principal | C22: 3460.391126 | D22: 1.912810341 | E22: 3458.478315 | F22: 0.05527728721
B23: Intereses | C23: 221.4578363 | D23: 0.01063211703 | E23: 221.4472042 | F23: 0.004800966724
B24: Comisiones y Otros Gastos | C24: 63.35341876 | D24: 21.35823688 | E24: 41.99518188 | F24: 33.71284028
B25: Fondo de Contingencias | C25: 0 | D25: 0 | E25: 0 | F25: 0
A26: III. | B26: INVERSIÓN | C26: 36950.69272 | D26: 17344.37158 | E26: 19606.32114 | F26: 46.93923254
A27: IV. | B27: TOTAL (I + II + III) | C27: 63195.50012 | D27: 31058.82089 | E27: 32136.67924 | F27: 49.14720324
A28: V. | B28: TOTAL SIN DEUDA (I + III) | C28: 55422.1394 | D28: 27603.15209 | E28: 27818.9873 | F28: 49.80528069
A29: Fuente: Dirección General del Presupuesto Público Nacional- Subdirección de Análisis y Consolidación Presupuestal

Sheet CUA9
A1: Cuadro No. 11 | G1: 1000000000
A2: Reservas presupuestales del PGN de 2024 que se ejecutan en el 2025
A3: Acumulado a Marzo
B5: Concepto | C5: Reservas Presupuestales | D5: Pago | E5: Reservas por pagar | F5: Ejecución %
C6: presupuestal | F6: Pago/Reservas
C7: (1) | D7: (2) | E7: (3)=(1-2) | F7: (4)=(2/1)
A8: I. | B8: FUNCIONAMIENTO | C8: 17958.99321 | D8: 9751.434057 | E8: 8207.559153 | F8: 54.29833367 | H8: FUNCIONAMIENTO | I8: 17983.38556 | J8: 7641.612973 | K8: =+I8-C8 -> 24.39235047 | L8: =+J8-D8 -> -2109.821083
B9: Gastos de Personal | C9: 470.3556624 | D9: 418.2979373 | E9: 52.05772514 | F9: 88.93226354 | H9: Gastos de Personal | I9: 472.1833077 | J9: 411.8682172 | K9: =+I9-C9 -> 1.827645296 | L9: -6.429720043
B10: Adquisición de Bienes y Servicios | C10: 4174.723488 | D10: 2867.244781 | E10: 1307.478707 | F10: 68.68107047 | H10: Adquisición de Bienes y Servicios | I10: 4195.062752 | J10: 1994.877709 | K10: 20.33926427 | L10: -872.3670716
B11: Transferencias | C11: 13158.44227 | D11: 6407.581171 | E11: 6750.861098 | F11: 48.69559056 | H11: Transferencias | I11: 13160.48377 | J11: 5194.59197 | K11: 2.041504763 | L11: -1212.989201
B12: Gastos de Comercialización y Producción | C12: 137.062901 | D12: 42.31329918 | E12: 94.7496018 | F12: 30.87144579 | H12: Gastos de Comercialización y Producción | I12: 137.2457628 | J12: 25.8311096 | K12: 0.1828618646 | L12: -16.48218957
B13: Adquisición de Activos Financieros | C13: 4.657729088 | D13: 3.259060455 | E13: 1.398668633 | F13: 69.97101793 | H13: Adquisición de Activos Financieros | I13: 4.658803368 | J13: 1.947258222 | K13: 0.00107428 | L13: -1.311802233
B14: Disminución de Pasivos | C14: 10.58143075 | D14: 9.909130338 | E14: 0.672300407 | F14: 93.64641301 | H14: Disminución de Pasivos | I14: 10.58143075 | J14: 9.907085626 | K14: 0 | L14: -0.002044712
B15: Gastos por Tributos, Multas, Sanciones e Intereses de Mora | C15: 3.169729768 | D15: 2.82867764 | E15: 0.3410521288 | F15: 89.24034054 | H15: Gastos por Tributos, Multas, Sanciones e Intereses de Mora | I15: 3.169729768 | J15: 2.589623018 | K15: 0 | L15: -0.239054622
A16: II. | B16: SERVICIO DE LA DEUDA | C16: 7773.360726 | D16: 3455.668793 | E16: 4317.691933 | F16: 44.45527378 | H16: SERVICIO DE LA DEUDA | I16: 7773.360726 | J16: 3030.781278 | K16: 0 | L16: -424.8875146
B17: Servicio de la Deuda Pública Externa | C17: 4028.158345 | D17: 3432.387113 | E17: 595.771232 | F17: 85.20983584 | H17: Servicio de la Deuda Pública Externa | I17: 4028.158345 | J17: 3007.499599 | K17: 0 | L17: -424.8875146
B18: Principal | C18: 1770.995202 | D18: 1367.061095 | E18: 403.9341075 | F18: 77.19168821 | H18: Principal | I18: 1770.995202 | J18: 1013.069517 | K18: 0 | L18: -353.9915776
B19: Intereses | C19: 2245.312495 | D19: 2063.128626 | E19: 182.1838691 | F19: 91.88603504 | H19: Intereses | I19: 2245.312495 | J19: 1992.455366 | K19: 0 | L19: -70.67325981
B20: Comisiones y Otros Gastos | C20: 11.85064825 | D20: 2.19739286 | E20: 9.653255387 | F20: 18.54238531 | H20: Comisiones y Otros Gastos | I20: 11.85064825 | J20: 1.974715705 | K20: 0 | L20: -0.2226771548
B21: Servicio de la Deuda Pública Interna | C21: 3745.202381 | D21: 23.28167934 | E21: 3721.920701 | F21: 0.6216400869 | H21: Servicio de la Deuda Pública Interna | I21: 3745.202381 | J21: 23.28167934 | K21: 0 | L21: 0
B22: Principal | C22: 3460.391126 | D22: 1.912810341 | E22: 3458.478315 | F22: 0.05527728721 | H22: Principal | I22: 3460.391126 | J22: 1.912810341 | K22: 0 | L22: 0
B23: Intereses | C23: 221.4578363 | D23: 0.01063211703 | E23: 221.4472042 | F23: 0.004800966724 | H23: Intereses | I23: 221.4578363 | J23: 0.01063211703 | K23: 0 | L23: 0
B24: Comisiones y Otros Gastos | C24: 63.35341876 | D24: 21.35823688 | E24: 41.99518188 | F24: 33.71284028 | H24: Comisiones y Otros Gastos | I24: 63.35341876 | J24: 21.35823688 | K24: 0 | L24: 0
B25: Fondo de Contingencias | C25: 0 | D25: 0 | E25: 0 | F25: 0 | H25: Fondo de contingencias | I25: 0 | J25: 0 | K25: 0 | L25: 0
A26: III. | B26: INVERSIÓN | C26: 35779.06838 | D26: 16179.70854 | E26: 19599.35984 | F26: 45.22115659 | H26: INVERSIÓN | I26: 35807.45166 | J26: 11011.49149 | K26: 28.38327306 | L26: -5168.217043
A27: IV. | B27: TOTAL (I + II + III) | C27: 61511.42232 | D27: 29386.81139 | E27: 32124.61093 | F27: 47.77456004 | H27: TOTAL (I + II + III) | I27: 61564.19794 | J27: 21683.88575 | K27: 52.77562354 | L27: -7702.925641
A28: V. | B28: TOTAL SIN DEUDA (I + III) | C28: 53738.06159 | D28: 25931.14259 | E28: 27806.919 | F28: 48.25470407 | H28: TOTAL SIN DEUDA (I + III) | I28: 53790.83722 | J28: 18653.10447 | K28: 52.77562354 | L28: -7278.038127
A29: Fuente: Dirección General del Presupuesto Público Nacional-Subdirección de Análisis y Consolidación Presupuestal

Sheet CUA10
A1: Cuadro No. 12
A2: Cuentas por pagar del PGN de 2023 que se ejecutan en el 2024
A3: Acumulado a Marzo 2025
A4: Miles de millones de pesos corrientes
B5: Concepto | C5: Cuentas por Pagar | D5: Pago | E5: Cuentas sin pagar | F5: Ejecución %
F6: Pago/Cuentas
C7: (1) | D7: (2) | E7: (3)=(1-2) | F7: (4)=(2/1)
A8: I. | B8: FUNCIONAMIENTO | C8: 512.4534635 | D8: 507.3464522 | E8: 5.107011324 | F8: 99.00341949 | H8: 408.4120593 | I8: 406.2075617 | J8: =+H8-C8 -> -104.0414042 | K8: =+I8-D8 -> -101.1388905
B9: Gastos de Personal | C9: 99.45141513 | D9: 99.31848796 | E9: 0.132927165 | F9: 99.86633959 | H9: 33.03304575 | I9: 33.01139416 | J9: =+H9-C9 -> -66.41836938 | K9: -66.3070938
B10: Adquisición de Bienes y Servicios | C10: 189.6455038 | D10: 188.4871066 | E10: 1.158397193 | F10: 99.38917761 | H10: 198.9744317 | I10: 198.9727557 | J10: 9.328927908 | K10: 10.48564903
B11: Transferencias | C11: 34.73784653 | D11: 31.46024715 | E11: 3.277599375 | F11: 90.56475947 | H11: 62.47458135 | I11: 60.39344836 | J11: 27.73673482 | K11: 28.93320121
B12: Gastos de Comercialización y Producción | C12: 183.5064035 | D12: 182.9684862 | E12: 0.537917278 | F12: 99.7068673 | H12: 107.6569445 | I12: 107.6569445 | J12: -75.84945896 | K12: -75.31154168
B13: Adquisición de Activos Financieros | C13: 0.3644543681 | D13: 0.3644543681 | E13: 0 | F13: 100 | H13: 4.3205215 | I13: 4.2205215 | J13: 3.956067132 | K13: 3.856067132
B14: Disminución de Pasivos | C14: 0.3569023729 | D14: 0.3569023729 | E14: 0 | F14: 100 | H14: 1.60507165 | I14: 1.60503464 | J14: 1.248169277 | K14: 1.248132267
B15: Gastos por Tributos, Multas, Sanciones e Intereses de Mora | C15: 4.390937816 | D15: 4.390767503 | E15: 0.000170313 | F15: 99.99612126 | H15: 0.34746281 | I15: 0.34746281 | J15: -4.043475006 | K15: -4.043304693
A16: II. | B16: SERVICIO DE LA DEUDA | C16: 0 | D16: 0 | E16: 0 | F16: 0 | H16: 6.736498228 | I16: 6.736498228 | J16: 6.736498228 | K16: 6.736498228
B17: Servicio de la Deuda Pública Externa | C17: 0 | D17: 0 | E17: 0 | F17: 0 | H17: 0 | I17: 0 | J17: 0 | K17: 0
B18: Principal | C18: 0 | D18: 0 | E18: 0 | F18: 0 | H18: 0 | I18: 0 | J18: 0 | K18: 0
B19: Intereses | C19: 0 | D19: 0 | E19: 0 | F19: 0 | H19: 0 | I19: 0 | J19: 0 | K19: 0
B20: Comisiones y Otros Gastos | C20: 0 | D20: 0 | E20: 0 | F20: 0 | H20: 0 | I20: 0 | J20: 0 | K20: 0
B21: Servicio de la Deuda Pública Interna | C21: 0 | D21: 0 | E21: 0 | F21: 0 | H21: 6.736498228 | I21: 6.736498228 | J21: 6.736498228 | K21: 6.736498228
B22: Principal | C22: 0 | D22: 0 | E22: 0 | F22: 0 | H22: 0 | I22: 0 | J22: 0 | K22: 0
B23: Intereses | C23: 0 | D23: 0 | E23: 0 | F23: 0 | H23: 0 | I23: 0 | J23: 0 | K23: 0
B24: Comisiones y Otros Gastos | C24: 0 | D24: 0 | E24: 0 | F24: 0 | H24: 0 | I24: 0 | J24: 0 | K24: 0
B25: Fondo de Contingencias | C25: 0 | D25: 0 | E25: 0 | F25: 0 | H25: 6.736498228 | I25: 6.736498228 | J25: 6.736498228 | K25: 6.736498228
A26: III. | B26: INVERSIÓN | C26: 1171.624343 | D26: 1164.663046 | E26: 6.961296602 | F26: 99.40584227 | H26: 621.5026668 | I26: 621.4521532 | J26: -550.121676 | K26: -543.210893
A27: IV. | B27: TOTAL (I + II + III) | C27: 1684.077806 | D27: 1672.009498 | E27: 12.06830793 | F27: 99.28338775 | H27: 1036.651224 | I27: 1034.396213 | J27: -647.426582 | K27: -637.6132854
A28: V. | B28: TOTAL SIN DEUDA (I + II) | C28: 1684.077806 | D28: 1672.009498 | E28: 12.06830793 | F28: 99.28338775 | H28: 1029.914726 | I28: 1027.659715 | J28: -654.1630802 | K28: -644.3497836
A29: Fuente: Dirección General del Presupuesto Público Nacional- Subdirección de Análisis y Consolidación Presupuestal
